Workbook

Sheet THEMA UND INHALT

Sheet SCHEMA
B1: 10:40:49
I2: ABBILDUNG A) STATISCHE SONNEN – UND UHRZEIT | P2: ABBILDUNG B) DYNAMISCHE SONNEN – UND UHRZEIT
B8: 2026-01-28

Sheet EINGABEN UND AUSDRUCK
B1: 13:21:12
B3: BESTIMMUNG DER SOLAREN ORTSZEIT AM STANDORT UND AM ZIELORT (WOZ UND MOZ)
B5: DATUM AM STANDORT (Anzeige rechts eintragen - exkl. Jahrzahl) | D5: 15 | E5: 1 | F5: ='BERECHNUNG 2'!$Y$9 -> 26 | G5: =TODAY() -> 2026-01-28
D6: (1 - 31) | E6: (1 - 12)
B7: UHRZEIT AM STANDORT MINUS ZEITVERSCHIEBUNG ZU UTC
B8: 2021-12-24 | D8: 12 | E8: 35 | F8: 50 | G8: =NOW() -> 46050.44677
B9: (berichtigt auf UTC! CH/MEZ: Sommer - 2; Winter - 1) | D9: (0 - 23) | E9: (0 -59) | F9: (0 - 59)
B11: LÄNGENGRAD AM STANDORT *Rechtsklick auf Bild od. Marke | D11: 8.5809591 | E11: KLOTEN STADTHAUS | G11: *Längengrad?
D12: (± X,…....) | E12: (Name des Standorts, fakultativ)
B14: LÄNGENGRAD AM ZIELORT *Rechtsklick auf Bild od. Marke | D14: -73.9857635 | E14: NEW YORK EMP.ST. BUILDING | G14: *Längengrad?
D15: (± X,…....) | E15: (Name des Zielorts, fakultativ)
B18: =$E$11 -> KLOTEN STADTHAUS | D18: =$E$14 -> NEW YORK EMP.ST. BUILDING
G25: Uhren mit WOZ
D30: =(E33/60)+(F33/3600) -> 0.4494444444 | E30: =(F33/60) -> 0.9666666667
D31: =IF(D33>=12,(D33+D30)-12,(D33+D30)) -> 7.449444444 | E31: =$E$33+E30 -> 26.96666667 | F31: =$F$33 -> 58 | G31: oekopriority.com | I31: Differenzbildung:
D32: =(D31-12) -> -4.550555556 | E32: =(60-E31) -> 33.03333333 | F32: =(60-F31) -> 2
B33: WOZ | C33: =$E$14 -> NEW YORK EMP.ST. BUILDING | D33: =IF('BERECHNUNG 2'!$Y$9=$F$5,IF($E$5='BERECHNUNG 2'!$AD$16,'BERECHNUNG 2'!$AA16,IF($E$5='BERECHNUNG 2'!$AD$20,'BERECHNUNG 2'!$AA20,IF($E$5='BERECHNUNG 2'!$AD$24,'BERECHNUNG 2'!$AA24,IF($E$5='BERECHNUNG 2'!$AD$28,'BERECHNUNG 2'!$AA28,IF($E$5='BERECHNUNG 2'!$AD$32,'BERECHNUNG 2'!$AA32,IF($E$5='BERECHNUNG 2'!$AD$36,'BERECHNUNG 2'!$AA36,IF($E$5='BERECHNUNG 2'!$AD$40,'BERECHNUNG 2'!$AA40,IF($E$5='BERECHNUNG 2'!$AD$44,'BERECHNUNG 2'!$AA44,IF($E$5='BERECHNUNG 2'!$AD$48,'BERECHNUNG 2'!$AA48,IF($E$5='BERECHNUNG 2'!$AD$52,'BERECHNUNG 2'!$AA52,IF($E$5='BERECHNUNG 2'!$AD$56,'BERECHNUNG 2'!$AA56,IF($E$5='BERECHNUNG 2'!$AD$60,'BERECHNUNG 2'!$AA60,"")))))))))))),"AUSSTEHEND") -> 7 | E33: =IF('BERECHNUNG 2'!$Y$9=$F$5,IF($E$5='BERECHNUNG 2'!$AD$16,'BERECHNUNG 2'!$AB16,IF($E$5='BERECHNUNG 2'!$AD$20,'BERECHNUNG 2'!$AB20,IF($E$5='BERECHNUNG 2'!$AD$24,'BERECHNUNG 2'!$AB24,IF($E$5='BERECHNUNG 2'!$AD$28,'BERECHNUNG 2'!$AB28,IF($E$5='BERECHNUNG 2'!$AD$32,'BERECHNUNG 2'!$AB32,IF($E$5='BERECHNUNG 2'!$AD$36,'BERECHNUNG 2'!$AB36,IF($E$5='BERECHNUNG 2'!$AD$40,'BERECHNUNG 2'!$AB40,IF($E$5='BERECHNUNG 2'!$AD$44,'BERECHNUNG 2'!$AB44,IF($E$5='BERECHNUNG 2'!$AD$48,'BERECHNUNG 2'!$AB48,IF($E$5='BERECHNUNG 2'!$AD$52,'BERECHNUNG 2'!$AB52,IF($E$5='BERECHNUNG 2'!$AD$56,'BERECHNUNG 2'!$AB56,IF($E$5='BERECHNUNG 2'!$AD$60,'BERECHNUNG 2'!$AB60,"")))))))))))),"AUSSTEHEND") -> 26 | F33: =IF('BERECHNUNG 2'!$Y$9=$F$5,IF($E$5='BERECHNUNG 2'!$AD$16,'BERECHNUNG 2'!$AC16,IF($E$5='BERECHNUNG 2'!$AD$20,'BERECHNUNG 2'!$AC20,IF($E$5='BERECHNUNG 2'!$AD$24,'BERECHNUNG 2'!$AC24,IF($E$5='BERECHNUNG 2'!$AD$28,'BERECHNUNG 2'!$AC28,IF($E$5='BERECHNUNG 2'!$AD$32,'BERECHNUNG 2'!$AC32,IF($E$5='BERECHNUNG 2'!$AD$36,'BERECHNUNG 2'!$AC36,IF($E$5='BERECHNUNG 2'!$AD$40,'BERECHNUNG 2'!$AC40,IF($E$5='BERECHNUNG 2'!$AD$44,'BERECHNUNG 2'!$AC44,IF($E$5='BERECHNUNG 2'!$AD$48,'BERECHNUNG 2'!$AC48,IF($E$5='BERECHNUNG 2'!$AD$52,'BERECHNUNG 2'!$AC52,IF($E$5='BERECHNUNG 2'!$AD$56,'BERECHNUNG 2'!$AC56,IF($E$5='BERECHNUNG 2'!$AD$60,'BERECHNUNG 2'!$AC60,"")))))))))))),"AUSSTEHEND") -> 58 | G33: ZIELORT | I33: Summensec. WOZ Standort | J33: =(D41*3600+E41*60+F41) -> 46634
C34: (Ein allf. Vermerk "AUSSTEHEND" bedeutet, dass die Daten zur Zeitgleichung noch nicht aktualisiert sind)
I35: Summenbsec. WOZ Zielort | J35: =(D33*3600+E33*60+F33) -> 26818
B36: MOZ | C36: =$E$14 -> NEW YORK EMP.ST. BUILDING | D36: ='BERECHNUNG 2'!V13 -> 7 | E36: ='BERECHNUNG 2'!W13 -> 39 | F36: ='BERECHNUNG 2'!X13 -> 53 | G36: ZIELORT
D37: =IF(D36<0,"Minus = Vortag","") ->  | I37: Differe nzsec absolut | J37: =ABS(J33-J35) -> 19816
D38: =(E41/60+F41/3600) -> 0.9538888889 | E38: =(F41/60) -> 0.2333333333
D39: =IF(D41>=12,(D41+D38)-12,(D41+D38)) -> 0.9538888889 | E39: =$E$41+E38 -> 57.23333333 | F39: =$F$41 -> 14 | I39: Anzahl Stunden | J39: =(J37/3600) -> 5.504444444 | K39: =ROUNDDOWN(J39,0) -> 5
D40: =(D39-12) -> -11.04611111 | E40: =(60-E39) -> 2.766666667 | F40: =(60-F39) -> 46
B41: WOZ | C41: =$E$11 -> KLOTEN STADTHAUS | D41: =IF('BERECHNUNG 2'!$Y$9=$F$5,IF($E$5='BERECHNUNG 2'!$AD$16,'BERECHNUNG 2'!$AE16,IF($E$5='BERECHNUNG 2'!$AD$20,'BERECHNUNG 2'!$AE20,IF($E$5='BERECHNUNG 2'!$AD$24,'BERECHNUNG 2'!$AE24,IF($E$5='BERECHNUNG 2'!$AD$28,'BERECHNUNG 2'!$AE28,IF($E$5='BERECHNUNG 2'!$AD$32,'BERECHNUNG 2'!$AE32,IF($E$5='BERECHNUNG 2'!$AD$36,'BERECHNUNG 2'!$AE36,IF($E$5='BERECHNUNG 2'!$AD$40,'BERECHNUNG 2'!$AE40,IF($E$5='BERECHNUNG 2'!$AD$44,'BERECHNUNG 2'!$AE44,IF($E$5='BERECHNUNG 2'!$AD$48,'BERECHNUNG 2'!$AE48,IF($E$5='BERECHNUNG 2'!$AD$52,'BERECHNUNG 2'!$AE52,IF($E$5='BERECHNUNG 2'!$AD$56,'BERECHNUNG 2'!$AE56,IF($E$5='BERECHNUNG 2'!$AD$60,'BERECHNUNG 2'!$AE60,"")))))))))))),"AUSSTEHEND") -> 12 | E41: =IF('BERECHNUNG 2'!$Y$9=$F$5,IF($E$5='BERECHNUNG 2'!$AD$16,'BERECHNUNG 2'!$AF16,IF($E$5='BERECHNUNG 2'!$AD$20,'BERECHNUNG 2'!$AF20,IF($E$5='BERECHNUNG 2'!$AD$24,'BERECHNUNG 2'!$AF24,IF($E$5='BERECHNUNG 2'!$AD$28,'BERECHNUNG 2'!$AF28,IF($E$5='BERECHNUNG 2'!$AD$32,'BERECHNUNG 2'!$AF32,IF($E$5='BERECHNUNG 2'!$AD$36,'BERECHNUNG 2'!$AF36,IF($E$5='BERECHNUNG 2'!$AD$40,'BERECHNUNG 2'!$AF40,IF($E$5='BERECHNUNG 2'!$AD$44,'BERECHNUNG 2'!$AF44,IF($E$5='BERECHNUNG 2'!$AD$48,'BERECHNUNG 2'!$AF48,IF($E$5='BERECHNUNG 2'!$AD$52,'BERECHNUNG 2'!$AF52,IF($E$5='BERECHNUNG 2'!$AD$56,'BERECHNUNG 2'!$AF56,IF($E$5='BERECHNUNG 2'!$AD$60,'BERECHNUNG 2'!$AF60,"")))))))))))),"AUSSTEHEND") -> 57 | F41: =IF('BERECHNUNG 2'!$Y$9=$F$5,IF($E$5='BERECHNUNG 2'!$AD$16,'BERECHNUNG 2'!$AG16,IF($E$5='BERECHNUNG 2'!$AD$20,'BERECHNUNG 2'!$AG20,IF($E$5='BERECHNUNG 2'!$AD$24,'BERECHNUNG 2'!$AG24,IF($E$5='BERECHNUNG 2'!$AD$28,'BERECHNUNG 2'!$AG28,IF($E$5='BERECHNUNG 2'!$AD$32,'BERECHNUNG 2'!$AG32,IF($E$5='BERECHNUNG 2'!$AD$36,'BERECHNUNG 2'!$AG36,IF($E$5='BERECHNUNG 2'!$AD$40,'BERECHNUNG 2'!$AG40,IF($E$5='BERECHNUNG 2'!$AD$44,'BERECHNUNG 2'!$AG44,IF($E$5='BERECHNUNG 2'!$AD$48,'BERECHNUNG 2'!$AG48,IF($E$5='BERECHNUNG 2'!$AD$52,'BERECHNUNG 2'!$AG52,IF($E$5='BERECHNUNG 2'!$AD$56,'BERECHNUNG 2'!$AG56,IF($E$5='BERECHNUNG 2'!$AD$60,'BERECHNUNG 2'!$AG60,"")))))))))))),"AUSSTEHEND") -> 14 | G41: STANDORT | I41: Anzahl Minuten | J41: =(J39-K39)*60 -> 30.26666667 | K41: =ROUNDDOWN(J41,0) -> 30
C42: (Ein allf. Vermerk "AUSSTEHEND" bedeutet, dass die Daten zur Zeitgleichung noch nicht aktualisiert sind)
I43: Anzahl Sekunden | K43: =(J41-K41)*60 -> 16
B44: MOZ | C44: =$E$11 -> KLOTEN STADTHAUS | D44: ='BERECHNUNG 2'!V17 -> 13 | E44: ='BERECHNUNG 2'!W17 -> 10 | F44: ='BERECHNUNG 2'!X17 -> 9 | G44: STANDORT
C48: WAHRE ZEITDIFFERENZ | D48: =IF('BERECHNUNG 2'!$V$8>=0,K39,24-ROUNDUP('BERECHNUNG 2'!$Z$6-(D8+0),0)) -> 5 | E48: =$K$41 -> 30 | F48: =$K$43 -> 16
B50: 2022-01-01 | C50: rev. 04.06.2022 korr. 04.09.2023; Nachführung Jan. 2025 | D50: Nachführung Jan. 2026

Sheet EINGABEN UND AUSDRUCK
B1: 18:35:02
B5: DATUM AM STANDORT (Anzeige rechts eintragen) | D5: ='STARTE DIE UHR!'!$B$11 -> 28 | E5: ='STARTE DIE UHR!'!$B$10 -> 1 | F5: ='STARTE DIE UHR!'!$B$9-2000 -> 26 | G5: =TODAY() -> 2026-01-28
B6: BESTIMMUNG DER SOLAREN ORTSZEIT AM STANDORT UND AM ZIELORT (WOZ UND MOZ)
B8: 2021-10-02 | D8: ='STARTE DIE UHR!'!$B$2+D9 -> 9 | E8: ='STARTE DIE UHR!'!$B$3 -> 43 | F8: ='STARTE DIE UHR!'!$B$4 -> 21 | G8: =NOW() -> 46050.44677
B9: BERICHTIGUNG DER LOKALEN UHRZEIT AM STANDORT AUF UTC-ZEIT | D9: -1 | E9: LOKALE UHRZEIT | F9: ='STARTE DIE UHR!'!$B$1 -> 46050.44677
B10: (Schweiz /MEZ: Sommer -2; Winter -1) | F10: ='STARTE DIE UHR!'!B3 -> 43
B11: LÄNGENGRAD AM ZIELORT *Rechtsklick auf Bild od. Marke | D11: 8.5809591 | E11: KLOTEN STADTHAUS | G11: *Längengrad?
D12: (± X,……......) | E12: (Name des Standorts, fakultativ)
B14: LÄNGENGRAD AM ZIELORT *Rechtsklick auf Bild od. Marke | D14: -73.9857635 | E14: NEW YORK EMP.ST. BUILDING | G14: *Längengrad?
D15: (± X,……......) | E15: (Name des Zielorts, fakultativ)
B18: =$E$11 -> KLOTEN STADTHAUS | D18: =$E$14 -> NEW YORK EMP.ST. BUILDING
G25: Uhren mit WOZ
D30: =(E33/60)+(F33/3600) -> 0.5747222222 | E30: =(F33/60) -> 0.4833333333
D31: =IF(D33>=12,(D33+D30)-12,(D33+D30)) -> 4.574722222 | E31: =$E$33+E30 -> 34.48333333 | F31: =$F$33 -> 29 | G31: oekopriority.com | I31: Differenzbildung:
D32: =(D31-12) -> -7.425277778 | E32: =(60-E31) -> 25.51666667 | F32: =(60-F31) -> 31
B33: WOZ | C33: =$E$14 -> NEW YORK EMP.ST. BUILDING | D33: =IF(BERECHNUNG!$Y$9=$F$5,IF($E$5=BERECHNUNG!$AD$16,BERECHNUNG!$AA16,IF($E$5=BERECHNUNG!$AD$20,BERECHNUNG!$AA20,IF($E$5=BERECHNUNG!$AD$24,BERECHNUNG!$AA24,IF($E$5=BERECHNUNG!$AD$28,BERECHNUNG!$AA28,IF($E$5=BERECHNUNG!$AD$32,BERECHNUNG!$AA32,IF($E$5=BERECHNUNG!$AD$36,BERECHNUNG!$AA36,IF($E$5=BERECHNUNG!$AD$40,BERECHNUNG!$AA40,IF($E$5=BERECHNUNG!$AD$44,BERECHNUNG!$AA44,IF($E$5=BERECHNUNG!$AD$48,BERECHNUNG!$AA48,IF($E$5=BERECHNUNG!$AD$52,BERECHNUNG!$AA52,IF($E$5=BERECHNUNG!$AD$56,BERECHNUNG!$AA56,IF($E$5=BERECHNUNG!$AD$60,BERECHNUNG!$AA60,"")))))))))))),"AUSSTEHEND") -> 4 | E33: =IF(BERECHNUNG!$Y$9=$F$5,IF($E$5=BERECHNUNG!$AD$16,BERECHNUNG!$AB16,IF($E$5=BERECHNUNG!$AD$20,BERECHNUNG!$AB20,IF($E$5=BERECHNUNG!$AD$24,BERECHNUNG!$AB24,IF($E$5=BERECHNUNG!$AD$28,BERECHNUNG!$AB28,IF($E$5=BERECHNUNG!$AD$32,BERECHNUNG!$AB32,IF($E$5=BERECHNUNG!$AD$36,BERECHNUNG!$AB36,IF($E$5=BERECHNUNG!$AD$40,BERECHNUNG!$AB40,IF($E$5=BERECHNUNG!$AD$44,BERECHNUNG!$AB44,IF($E$5=BERECHNUNG!$AD$48,BERECHNUNG!$AB48,IF($E$5=BERECHNUNG!$AD$52,BERECHNUNG!$AB52,IF($E$5=BERECHNUNG!$AD$56,BERECHNUNG!$AB56,IF($E$5=BERECHNUNG!$AD$60,BERECHNUNG!$AB60,"")))))))))))),"AUSSTEHEND") -> 34 | F33: =IF(BERECHNUNG!$Y$9=$F$5,IF($E$5=BERECHNUNG!$AD$16,BERECHNUNG!$AC16,IF($E$5=BERECHNUNG!$AD$20,BERECHNUNG!$AC20,IF($E$5=BERECHNUNG!$AD$24,BERECHNUNG!$AC24,IF($E$5=BERECHNUNG!$AD$28,BERECHNUNG!$AC28,IF($E$5=BERECHNUNG!$AD$32,BERECHNUNG!$AC32,IF($E$5=BERECHNUNG!$AD$36,BERECHNUNG!$AC36,IF($E$5=BERECHNUNG!$AD$40,BERECHNUNG!$AC40,IF($E$5=BERECHNUNG!$AD$44,BERECHNUNG!$AC44,IF($E$5=BERECHNUNG!$AD$48,BERECHNUNG!$AC48,IF($E$5=BERECHNUNG!$AD$52,BERECHNUNG!$AC52,IF($E$5=BERECHNUNG!$AD$56,BERECHNUNG!$AC56,IF($E$5=BERECHNUNG!$AD$60,BERECHNUNG!$AC60,"")))))))))))),"AUSSTEHEND") -> 29 | G33: ZIELORT | J33: =(D41*3600+E41*60+F41) -> 36285
C34: (Ein allf. Vermerk "AUSSTEHEND" bedeutet, dass die Daten zur Zeitgleichung noch nicht aktualisiert sind)
I35: Summenbsec. WOZ Zielort | J35: =(D33*3600+E33*60+F33) -> 16469
B36: MOZ | C36: =$E$14 -> NEW YORK EMP.ST. BUILDING | D36: =BERECHNUNG!$V$13 -> 4 | E36: =BERECHNUNG!$W$13 -> 47 | F36: =BERECHNUNG!$X$13 -> 24 | G36: ZIELORT
D37: =IF(D36<0,"Minus = Vortag","") ->  | I37: Differe nzsec absolut | J37: =ABS(J33-J35) -> 19816
D38: =(E41/60+F41/3600) -> 0.07916666667 | E38: =(F41/60) -> 0.75
D39: =IF(D41>=12,(D41+D38)-12,(D41+D38)) -> 10.07916667 | E39: =$E$41+E38 -> 4.75 | F39: =$F$41 -> 45 | I39: Anzahl Stunden | J39: =(J37/3600) -> 5.504444444 | K39: =ROUNDDOWN(J39,0) -> 5
D40: =(D39-12) -> -1.920833333 | E40: =(60-E39) -> 55.25 | F40: =(60-F39) -> 15
B41: WOZ | C41: =$E$11 -> KLOTEN STADTHAUS | D41: =IF(BERECHNUNG!$Y$9=$F$5,IF($E$5=BERECHNUNG!$AD$16,BERECHNUNG!$AE16,IF($E$5=BERECHNUNG!$AD$20,BERECHNUNG!$AE20,IF($E$5=BERECHNUNG!$AD$24,BERECHNUNG!$AE24,IF($E$5=BERECHNUNG!$AD$28,BERECHNUNG!$AE28,IF($E$5=BERECHNUNG!$AD$32,BERECHNUNG!$AE32,IF($E$5=BERECHNUNG!$AD$36,BERECHNUNG!$AE36,IF($E$5=BERECHNUNG!$AD$40,BERECHNUNG!$AE40,IF($E$5=BERECHNUNG!$AD$44,BERECHNUNG!$AE44,IF($E$5=BERECHNUNG!$AD$48,BERECHNUNG!$AE48,IF($E$5=BERECHNUNG!$AD$52,BERECHNUNG!$AE52,IF($E$5=BERECHNUNG!$AD$56,BERECHNUNG!$AE56,IF($E$5=BERECHNUNG!$AD$60,BERECHNUNG!$AE60,"")))))))))))),"AUSSTEHEND") -> 10 | E41: =IF(BERECHNUNG!$Y$9=$F$5,IF($E$5=BERECHNUNG!$AD$16,BERECHNUNG!$AF16,IF($E$5=BERECHNUNG!$AD$20,BERECHNUNG!$AF20,IF($E$5=BERECHNUNG!$AD$24,BERECHNUNG!$AF24,IF($E$5=BERECHNUNG!$AD$28,BERECHNUNG!$AF28,IF($E$5=BERECHNUNG!$AD$32,BERECHNUNG!$AF32,IF($E$5=BERECHNUNG!$AD$36,BERECHNUNG!$AF36,IF($E$5=BERECHNUNG!$AD$40,BERECHNUNG!$AF40,IF($E$5=BERECHNUNG!$AD$44,BERECHNUNG!$AF44,IF($E$5=BERECHNUNG!$AD$48,BERECHNUNG!$AF48,IF($E$5=BERECHNUNG!$AD$52,BERECHNUNG!$AF52,IF($E$5=BERECHNUNG!$AD$56,BERECHNUNG!$AF56,IF($E$5=BERECHNUNG!$AD$60,BERECHNUNG!$AF60,"")))))))))))),"AUSSTEHEND") -> 4 | F41: =IF(BERECHNUNG!$Y$9=$F$5,IF($E$5=BERECHNUNG!$AD$16,BERECHNUNG!$AG16,IF($E$5=BERECHNUNG!$AD$20,BERECHNUNG!$AG20,IF($E$5=BERECHNUNG!$AD$24,BERECHNUNG!$AG24,IF($E$5=BERECHNUNG!$AD$28,BERECHNUNG!$AG28,IF($E$5=BERECHNUNG!$AD$32,BERECHNUNG!$AG32,IF($E$5=BERECHNUNG!$AD$36,BERECHNUNG!$AG36,IF($E$5=BERECHNUNG!$AD$40,BERECHNUNG!$AG40,IF($E$5=BERECHNUNG!$AD$44,BERECHNUNG!$AG44,IF($E$5=BERECHNUNG!$AD$48,BERECHNUNG!$AG48,IF($E$5=BERECHNUNG!$AD$52,BERECHNUNG!$AG52,IF($E$5=BERECHNUNG!$AD$56,BERECHNUNG!$AG56,IF($E$5=BERECHNUNG!$AD$60,BERECHNUNG!$AG60,"")))))))))))),"AUSSTEHEND") -> 45 | G41: STANDORT | J41: =(J39-K39)*60 -> 30.26666667 | K41: =ROUNDDOWN(J41,0) -> 30
C42: (Ein allf. Vermerk "AUSSTEHEND" bedeutet, dass die Daten zur Zeitgleichung noch nicht aktualisiert sind)
I43: Anzahl Sekunden | K43: =(J41-K41)*60 -> 16
B44: MOZ | C44: =$C$41 -> KLOTEN STADTHAUS | D44: =BERECHNUNG!$V$17 -> 10 | E44: =BERECHNUNG!$W$17 -> 17 | F44: =BERECHNUNG!$X$17 -> 40 | G44: STANDORT
B46: Informativ: MOMENTANE ZEITGLEICHUNG MEZ. Polynomische Funktionen basierend auf: | E46: =$J$49 -> -12 | F46: =$K$49 -> 55
B47: Zeitgleichungstabelle_2026.pdf (HELIOS)
H48: Sek. Summe WOZ | I48: =(D41*3600+E41*60+F41) -> 36285 | J48: Dezimal Min.Diff | K48: =(I48-I49)/60 -> -12.91666667
B49: WAHRE ZEITDIFFERENZ | D49: =IF([1]BERECHNUNG!$V$8>=0,K39,24-ROUNDUP([1]BERECHNUNG!$Z$6-(D8+0),0)) -> 5 | E49: =$K$41 -> 30 | F49: =$K$43 -> 16 | H49: Sek. Summe MOZ | I49: =(D44*3600+E44*60+F44) -> 37060 | J49: =ROUNDDOWN($K$48,0) -> -12 | K49: =ABS(K48-J49)*60 -> 55
B51: 2022-01-01 | C51: rev. 04.06.2022 erweitert 07.01.2023 korr.04.09.2023 | D51: Nachführung Jan. 2025 | E51: Nachführung Jan. 2026

Sheet STARTE DIE UHR! (hidden)
A1: Uhrzeit | B1: =NOW() -> 46050.44677
A2: Stunde | B2: =HOUR(B1) -> 10 | K2: STUNDEN | L2: 3 | N2: =IF(B2>12,B2-12+B3/60+B4/3600,B2+B3/60+B4/3600) -> 10.7225
A3: Minute | B3: =MINUTE(B1) -> 43 | L3: 9 | N3: =(12-N2) -> 1.2775
A4: Sekunde | B4: =SECOND(B1) -> 21 | K4: MINUTEN | N4: =(B3+B4/60) -> 43.35
N5: =(60-N4) -> 16.65
K6: SEKUNDEN | N6: =(B4) -> 21
N7: =(60-N6) -> 39
A8: Datum | B8: =TODAY() -> 2026-01-28
A9: Jahr | B9: =YEAR(B8) -> 2026
A10: Monat | B10: =MONTH(B8) -> 1
A11: Tag | B11: =DAY(B8) -> 28
A12: Wochentag 1 | B12: =B8 -> 2026-01-28
A13: Wochentag 2 | B13: =B8 -> 2026-01-28
A17: Ein Klick auf den Start-Button startet die laufende Ausgabe der aktuellen Uhrzeit sowie des aktuellen Datums mit den entsprechenden
A18: Teilinformationen wie Stunde, Minute, Sekunde, Jahr, Monat etc.
B19: =$B$1 -> 46050.44677
A20: Mit Klick auf den Button Stopp wird die Akualisierung wieder beendet.

Sheet BERECHNUNG 2 (hidden)
A1: 1 | B1: -3 | C1: 33 | D1: =(C1/60) -> 0.55 | F1: Januar | G1: Februar | H1: März | I1: April
A2: 2 | B2: -4 | C2: 1 | D2: 0.01666666667 | E2: 1 | F2: =(B1-D1) -> -3.55 | G2: -13.53333333 | H2: -12.3 | I2: -3.85 | K2: GRAFIKEN SIEHE "BERECHNUNG" | V2: std | W2: min | X2: sec | Y2: Summe sec
A3: 3 | B3: -4 | C3: 28 | D3: 0.4666666667 | E3: 2 | F3: -4.016666667 | G3: -13.66666667 | H3: -12.1 | I3: -3.55 | U3: ARMBAND - UHRZEIT (mein Standort) | V3: =' EINGABEN UND AUSDRUCK'!$D$8 -> 12 | W3: =' EINGABEN UND AUSDRUCK'!$E$8 -> 35 | X3: =' EINGABEN UND AUSDRUCK'!$F$8 -> 50 | Y3: =(3600*V3+60*W3+X3) -> 45350
A4: 4 | B4: -4 | C4: 55 | D4: 0.9166666667 | E4: 3 | F4: -4.466666667 | G4: -13.76666667 | H4: -11.88333333 | I4: -3.25 | U4: (berichtigt auf UTC; CH / MEZ: Sommer -2, Winter - 1) | X4: Längngrad - Zuschalag | Y4: =(V5*4*60) -> 2059.430184 | Z4: Wenn V8 = negativ, dann 24 + (Y6/3600)
A5: 5 | B5: -5 | C5: 22 | D5: 0.3666666667 | E5: 4 | F5: -4.916666667 | G5: -13.86666667 | H5: -11.66666667 | I5: -2.966666667 | U5: LÄNGENGRAD (mein Standort) | V5: =' EINGABEN UND AUSDRUCK'!$D$11 -> 8.5809591 | X5: Summe am Standort | Y5: =(Y3+Y4) -> 47409.43018 | Z5: ↓
A6: 6 | B6: -5 | C6: 49 | D6: 0.8166666667 | E6: 5 | F6: -5.366666667 | G6: -13.95 | H6: -11.45 | I6: -2.666666667 | U6: (z.B. Google Maps) | X6: Summe am Zielort | Y6: =(Y5+((V7-V5)*4*60)+((0)*0)) -> 27593.41676 | Z6: =(24+(Y6/3600)) -> 31.66483799
A7: 7 | B7: -6 | C7: 15 | D7: 0.25 | E7: 6 | F7: -5.816666667 | G7: -14.01666667 | H7: -11.21666667 | I7: -2.383333333 | U7: LÄNGENGRAD (Zielort) | V7: =' EINGABEN UND AUSDRUCK'!$D$14 -> -73.9857635 | Y7: =' EINGABEN UND AUSDRUCK'!$E$14 -> NEW YORK EMP.ST. BUILDING
A8: 8 | B8: -6 | C8: 40 | D8: 0.6666666667 | E8: 7 | F8: -6.25 | G8: -14.08333333 | H8: -10.98333333 | I8: -2.1 | U8: (z.B. Google Maps) MOZ am Zielort | V8: =(Y6/3600) -> 7.664837989 | W8: =IF(V8>=0,(V8-V13),1+(V8-ROUNDDOWN(V8,0))) -> 0.6648379889 | X8: =(W8*60) -> 39.89027933 | Y8: Zerlegung
A9: 9 | B9: -7 | C9: 5 | D9: 0.08333333333 | E9: 8 | F9: -6.666666667 | G9: -14.11666667 | H9: -10.73333333 | I9: -1.833333333 | U9: "n - ter" - TAG DES MONATS (mein Standort) | V9: =' EINGABEN UND AUSDRUCK'!$D$5 -> 15 | W9: JAHRZAHL (-DEZIMALE) DER ZEITGLEICHUNGS-TABELLE | Y9: 26
A10: 10 | B10: -7 | C10: 29 | D10: 0.4833333333 | E10: 9 | F10: -7.083333333 | G10: -14.15 | H10: -10.48333333 | I10: -1.55 | U10: MOZ am Standort | V10: =(Y5/3600) -> 13.16928616 | W10: =V10-ROUNDDOWN(V10,0) -> 0.1692861622 | X10: =(W10*60) -> 10.15716973 | AB10: 2
A11: 11 | B11: -7 | C11: 53 | D11: 0.8833333333 | E11: 10 | F11: -7.483333333 | G11: -14.16666667 | H11: -10.23333333 | I11: -1.283333333 | V11: MITTLERE ORTSZEIT AM ZIELORT (MOZ) | Y11: Summendiff. sec für
A12: 12 | B12: -8 | C12: 16 | D12: 0.2666666667 | E12: 11 | F12: -7.883333333 | G12: -14.16666667 | H12: -9.966666667 | I12: -1.016666667 | V12: std | W12: min | X12: sec | Y12: Zeitgleichung "vor/nach" 12:00
A13: 13 | B13: -8 | C13: 39 | D13: 0.65 | E13: 12 | F13: -8.266666667 | G13: -14.16666667 | H13: -9.7 | I13: -0.7666666667 | V13: =IF($V$8>=0,ROUNDDOWN($V$8,0),ROUNDDOWN(-1*$V$14,0)) -> 7 | W13: =ROUNDDOWN(IF($V$8>=0,ROUNDDOWN($X$8,0),W14*60),0) -> 39 | X13: =IF(V8>=0,ROUND((X8-W13)*60,0),ROUND(X14*60,0)) -> 53 | Y13: =((V17-12)*60*60+W17*60+X17)-((V5/15)*60*60) -> 2149.569816
A14: 14 | B14: -9 | C14: 1 | D14: 0.01666666667 | E14: 13 | F14: -8.65 | G14: -14.15 | H14: -9.433333333 | I14: -0.5 | V14: =$Z$6 -> 31.66483799 | W14: =($V$14-ROUNDDOWN($V$14,0)) -> 0.6648379889 | X14: =(W14*60-W13) -> 0.8902793333 | Y14: GEMESSEN AM 0° - MERIDIAN
A15: 15 | B15: -9 | C15: 23 | D15: 0.3833333333 | E15: 14 | F15: -9.016666667 | G15: -14.11666667 | H15: -9.166666667 | I15: -0.25 | V15: X am 0° - Meridian= | W15: =($V$9+((1.1574074074*10^-5)*$Y$13)) -> 15.02487928 | X15: (n-ter Tag) | Y15: MIN | Z15: SEC | AA15: WAHRE ORTSZEIT AM ZIELORT (WOZ) (std:min:sec) | AD15: Monat | AE15: WAHRE ORTSZEIT AM STANDORT
A16: 16 | B16: -9 | C16: 43 | D16: 0.7166666667 | E16: 15 | F16: -9.383333333 | G16: -14.06666667 | H16: -8.883333333 | I16: -0.01666666667 | U16: JANUAR | V16: Y gleitende ZG am 0°-Meridian= | W16: =BERECHNUNG!$W$16 -> -12.91591983 | X16: Y = | Y16: =ROUNDDOWN(W16,0) -> -12 | Z16: =IF(Y16>=0,ROUND(ABS(W16-Y16)*60,0),-ROUND(ABS(W16-Y16)*60,0)) -> -55 | AA16: =IF($V$8>=0,ROUNDDOWN(AA17,0),ROUNDDOWN(AA18*-1,0)) -> 7 | AB16: =IF($V$8>=0,ROUNDDOWN(AB17,0),ROUNDDOWN(AB18,0)) -> 26 | AC16: =IF($V$8>=0,ROUNDDOWN(AC17,0),ROUNDUP(AC18,0)) -> 58 | AD16: 1 | AE16: =ROUNDDOWN(AE17,0) -> 12 | AF16: =ROUNDDOWN(AF17,0) -> 57 | AG16: =ROUND(AG17*60,0) -> 14
A17: 17 | B17: -10 | C17: 3 | D17: 0.05 | E17: 16 | F17: -9.716666667 | G17: -14.01666667 | H17: -8.6 | I17: 0.2166666667 | U17: Hilfszeile: MOZ am Standort (std:min:sec) | V17: =ROUNDDOWN($V$10,0) -> 13 | W17: =ROUNDDOWN($X$10,0) -> 10 | X17: =ROUND((X10-W17)*60,0) -> 9 | AA17: =($V$8*60*60+W16*60)/3600 -> 7.449572658 | AB17: =(AA17-ROUNDDOWN(AA17,0))*60 -> 26.97435951 | AC17: =(AB17-ROUNDDOWN(AB17,0))*60 -> 58.46157034 | AE17: =($V$10*60*60+W16*60)/3600 -> 12.95402083 | AF17: =(AE17-ROUNDDOWN(AE17,0))*60 -> 57.24124991 | AG17: =(AF17-ROUNDDOWN(AF17,0)) -> 0.2412499056
A18: 18 | B18: -10 | C18: 23 | D18: 0.3833333333 | E18: 17 | F18: -10.05 | G18: -13.95 | H18: -8.316666667 | I18: 0.45 | AA18: =(AD18/3600) -> 31.44956021 | AB18: =(AA18-ROUNDDOWN(AA18,0))*60 -> 26.97361267 | AC18: =(AB18-ROUNDDOWN(AB18,0))*60 -> 58.41676 | AD18: =($Z$6*3600+Y16*60+Z16) -> 113218.4168
A19: 19 | B19: -10 | C19: 42 | D19: 0.7 | E19: 18 | F19: -10.38333333 | G19: -13.86666667 | H19: -8.033333333 | I19: 0.6833333333 | V19: X am 0° - Meridian= | W19: =($V$9+((1.1574074074*10^-5)*$Y$13)) -> 15.02487928 | X19: (n-ter Tag) | Y19: MIN | Z19: SEC | AA19: WAHRE ORTSZEIT AM ZIELORT (std:min:sec)
A20: 20 | B20: -10 | C20: 59 | D20: 0.9833333333 | E20: 19 | F20: -10.7 | G20: -13.78333333 | H20: -7.733333333 | I20: 0.9 | U20: FEBRUAR | V20: Y gleitende ZG am 0°-Meridian= | W20: =BERECHNUNG!$W$20 -> -12.48837287 | X20: Y = | Y20: =ROUNDDOWN(W20,0) -> -12 | Z20: =IF(Y20>=0,ROUND(ABS(W20-Y20)*60,0),-ROUND(ABS(W20-Y20)*60,0)) -> -29 | AA20: =IF($V$8>=0,ROUNDDOWN(AA21,0),ROUNDDOWN(AA22*-1,0)) -> 7 | AB20: =IF($V$8>=0,ROUNDDOWN(AB21,0),ROUNDDOWN(AB22,0)) -> 27 | AC20: =IF($V$8>=0,ROUNDDOWN(AC21,0),ROUNDUP(AC22,0)) -> 24 | AD20: 2 | AE20: =ROUNDDOWN(AE21,0) -> 12 | AF20: =ROUNDDOWN(AF21,0) -> 57 | AG20: =ROUND(AG21*60,0) -> 40
A21: 21 | B21: -11 | C21: 17 | D21: 0.2833333333 | E21: 20 | F21: -10.98333333 | G21: -13.68333333 | H21: -7.45 | I21: 1.1 | AA21: =($V$8*60*60+W20*60)/3600 -> 7.456698441 | AB21: =(AA21-ROUNDDOWN(AA21,0))*60 -> 27.40190647 | AC21: =(AB21-ROUNDDOWN(AB21,0))*60 -> 24.11438794 | AE21: =($V$10*60*60+W20*60)/3600 -> 12.96114661 | AF21: =(AE21-ROUNDDOWN(AE21,0))*60 -> 57.66879687 | AG21: =(AF21-ROUNDDOWN(AF21,0)) -> 0.6687968657
A22: 22 | B22: -11 | C22: 33 | D22: 0.55 | E22: 21 | F22: -11.28333333 | G22: -13.56666667 | H22: -7.15 | I22: 1.3 | AA22: =(AD22/3600) -> 31.45678243 | AB22: =(AA22-ROUNDDOWN(AA22,0))*60 -> 27.406946 | AC22: =(AB22-ROUNDDOWN(AB22,0))*60 -> 24.41676 | AD22: =($Z$6*3600+Y20*60+Z20) -> 113244.4168
A23: 23 | B23: -11 | C23: 49 | D23: 0.8166666667 | E23: 22 | F23: -11.55 | G23: -13.45 | H23: -6.85 | I23: 1.5 | V23: X am 0° - Meridian= | W23: =($V$9+((1.1574074074*10^-5)*$Y$13)) -> 15.02487928 | X23: (n-ter Tag) | Y23: MIN | Z23: SEC | AA23: WAHRE ORTSZEIT AM ZIELORT (std:min:sec)
A24: 24 | B24: -12 | C24: 3 | D24: 0.05 | E24: 23 | F24: -11.81666667 | G24: -13.31666667 | H24: -6.55 | I24: 1.683333333 | U24: MÄRZ | V24: Y gleitende ZG am 0°-Meridian= | W24: =BERECHNUNG!$W$24 -> -5.06464695 | X24: Y = | Y24: =ROUNDDOWN(W24,0) -> -5 | Z24: =IF(Y24>=0,ROUND(ABS(W24-Y24)*60,0),-ROUND(ABS(W24-Y24)*60,0)) -> -4 | AA24: =IF($V$8>=0,ROUNDDOWN(AA25,0),ROUNDDOWN(AA26*-1,0)) -> 7 | AB24: =IF($V$8>=0,ROUNDDOWN(AB25,0),ROUNDDOWN(AB26,0)) -> 34 | AC24: =IF($V$8>=0,ROUNDDOWN(AC25,0),ROUNDUP(AC26,0)) -> 49 | AD24: 3 | AE24: =ROUNDDOWN(AE25,0) -> 13 | AF24: =ROUNDDOWN(AF25,0) -> 5 | AG24: =ROUND(AG25*60,0) -> 6
A25: 25 | B25: -12 | C25: 17 | D25: 0.2833333333 | E25: 24 | F25: -12.05 | G25: -13.16666667 | H25: -6.25 | I25: 1.866666667 | AA25: =($V$8*60*60+W24*60)/3600 -> 7.580427206 | AB25: =(AA25-ROUNDDOWN(AA25,0))*60 -> 34.82563238 | AC25: =(AB25-ROUNDDOWN(AB25,0))*60 -> 49.53794302 | AE25: =($V$10*60*60+W24*60)/3600 -> 13.08487538 | AF25: =(AE25-ROUNDDOWN(AE25,0))*60 -> 5.092522784 | AG25: =(AF25-ROUNDDOWN(AF25,0)) -> 0.09252278368
A26: 26 | B26: -12 | C26: 31 | D26: 0.5166666667 | E26: 25 | F26: -12.28333333 | G26: -13.01666667 | H26: -5.95 | I26: 2.05 | AA26: =(AD26/3600) -> 31.58039354 | AB26: =(AA26-ROUNDDOWN(AA26,0))*60 -> 34.82361267 | AC26: =(AB26-ROUNDDOWN(AB26,0))*60 -> 49.41676 | AD26: =($Z$6*3600+Y24*60+Z24) -> 113689.4168
A27: 27 | B27: -12 | C27: 43 | D27: 0.7166666667 | E27: 26 | F27: -12.51666667 | G27: -12.85 | H27: -5.65 | I27: 2.216666667 | V27: X am 0° - Meridian= | W27: =($V$9+((1.1574074074*10^-5)*$Y$13)) -> 15.02487928 | X27: (n-ter Tag) | Y27: MIN | Z27: SEC | AA27: WAHRE ORTSZEIT AM ZIELORT (std:min:sec)
A28: 28 | B28: -12 | C28: 54 | D28: 0.9 | E28: 27 | F28: -12.71666667 | G28: -12.66666667 | H28: -5.35 | I28: 2.366666667 | U28: APRIL | V28: Y gleitende ZG am 0°-Meridian= | W28: =BERECHNUNG!$W$28 -> 2.419899242 | X28: Y = | Y28: =ROUNDDOWN(W28,0) -> 2 | Z28: =IF(Y28>=0,ROUND(ABS(W28-Y28)*60,0),-ROUND(ABS(W28-Y28)*60,0)) -> 25 | AA28: =IF($V$8>=0,ROUNDDOWN(AA29,0),ROUNDDOWN(AA30*-1,0)) -> 7 | AB28: =IF($V$8>=0,ROUNDDOWN(AB29,0),ROUNDDOWN(AB30,0)) -> 42 | AC28: =IF($V$8>=0,ROUNDDOWN(AC29,0),ROUNDUP(AC30,0)) -> 18 | AD28: 4 | AE28: =ROUNDDOWN(AE29,0) -> 13 | AF28: =ROUNDDOWN(AF29,0) -> 12 | AG28: =ROUND(AG29*60,0) -> 35
A29: 29 | B29: -13 | C29: 5 | D29: 0.08333333333 | E29: 28 | F29: -12.9 | G29: -12.48333333 | H29: -5.05 | I29: 2.516666667 | AA29: =($V$8*60*60+W28*60)/3600 -> 7.705169643 | AB29: =(AA29-ROUNDDOWN(AA29,0))*60 -> 42.31017858 | AC29: =(AB29-ROUNDDOWN(AB29,0))*60 -> 18.61071453 | AE29: =($V$10*60*60+W28*60)/3600 -> 13.20961782 | AF29: =(AE29-ROUNDDOWN(AE29,0))*60 -> 12.57706898 | AG29: =(AF29-ROUNDDOWN(AF29,0)) -> 0.5770689756
A30: 30 | B30: -13 | C30: 15 | D30: 0.25 | E30: 29 | F30: -13.08333333 | H30: -4.75 | I30: 2.666666667 | AA30: =(AD30/3600) -> 31.70511577 | AB30: =(AA30-ROUNDDOWN(AA30,0))*60 -> 42.306946 | AC30: =(AB30-ROUNDDOWN(AB30,0))*60 -> 18.41676 | AD30: =($Z$6*3600+Y28*60+Z28) -> 114138.4168
A31: 31 | B31: -13 | C31: 24 | D31: 0.4 | E31: 30 | F31: -13.25 | H31: -4.45 | I31: 2.8 | V31: X am 0° - Meridian= | W31: =($V$9+((1.1574074074*10^-5)*$Y$13)) -> 15.02487928 | X31: (n-ter Tag) | Y31: MIN | Z31: SEC | AA31: WAHRE ORTSZEIT AM ZIELORT (std:min:sec)
A32: Februar | D32: Februar | E32: 31 | F32: -13.4 | H32: -4.15 | U32: MAI | V32: Y gleitende ZG am 0°-Meridian= | W32: =BERECHNUNG!$W$32 -> 2.7260614 | X32: Y = | Y32: =ROUNDDOWN(W32,0) -> 2 | Z32: =IF(Y32>=0,ROUND(ABS(W32-Y32)*60,0),-ROUND(ABS(W32-Y32)*60,0)) -> 44 | AA32: =IF($V$8>=0,ROUNDDOWN(AA33,0),ROUNDDOWN(AA34*-1,0)) -> 7 | AB32: =IF($V$8>=0,ROUNDDOWN(AB33,0),ROUNDDOWN(AB34,0)) -> 42 | AC32: =IF($V$8>=0,ROUNDDOWN(AC33,0),ROUNDUP(AC34,0)) -> 36 | AD32: 5 | AE32: =ROUNDDOWN(AE33,0) -> 13 | AF32: =ROUNDDOWN(AF33,0) -> 12 | AG32: =ROUND(AG33*60,0) -> 53
A33: 1 | B33: -13 | C33: 32 | D33: =(B33-(C33/60)) -> -13.53333333 | AA33: =($V$8*60*60+W32*60)/3600 -> 7.710272346 | AB33: =(AA33-ROUNDDOWN(AA33,0))*60 -> 42.61634073 | AC33: =(AB33-ROUNDDOWN(AB33,0))*60 -> 36.98044397 | AE33: =($V$10*60*60+W32*60)/3600 -> 13.21472052 | AF33: =(AE33-ROUNDDOWN(AE33,0))*60 -> 12.88323113 | AG33: =(AF33-ROUNDDOWN(AF33,0)) -> 0.8832311329
A34: 2 | B34: -13 | C34: 40 | D34: -13.66666667 | AA34: =(AD34/3600) -> 31.71039354 | AB34: =(AA34-ROUNDDOWN(AA34,0))*60 -> 42.62361267 | AC34: =(AB34-ROUNDDOWN(AB34,0))*60 -> 37.41676 | AD34: =($Z$6*3600+Y32*60+Z32) -> 114157.4168
A35: 3 | B35: -13 | C35: 46 | D35: -13.76666667 | V35: X am 0° - Meridian= | W35: =($V$9+((1.1574074074*10^-5)*$Y$13)) -> 15.02487928 | X35: (n-ter Tag) | Y35: MIN | Z35: SEC | AA35: WAHRE ORTSZEIT AM ZIELORT (std:min:sec)
A36: 4 | B36: -13 | C36: 52 | D36: -13.86666667 | U36: JUNI | V36: Y gleitende ZG am 0°-Meridian= | W36: =BERECHNUNG!$W$36 -> -3.307084874 | X36: Y = | Y36: =ROUNDDOWN(W36,0) -> -3 | Z36: =IF(Y36>=0,ROUND(ABS(W36-Y36)*60,0),-ROUND(ABS(W36-Y36)*60,0)) -> -18 | AA36: =IF($V$8>=0,ROUNDDOWN(AA37,0),ROUNDDOWN(AA38*-1,0)) -> 7 | AB36: =IF($V$8>=0,ROUNDDOWN(AB37,0),ROUNDDOWN(AB38,0)) -> 36 | AC36: =IF($V$8>=0,ROUNDDOWN(AC37,0),ROUNDUP(AC38,0)) -> 34 | AD36: 6 | AE36: =ROUNDDOWN(AE37,0) -> 13 | AF36: =ROUNDDOWN(AF37,0) -> 6 | AG36: =ROUND(AG37*60,0) -> 51
A37: 5 | B37: -13 | C37: 57 | D37: -13.95 | AA37: =($V$8*60*60+W36*60)/3600 -> 7.609719908 | AB37: =(AA37-ROUNDDOWN(AA37,0))*60 -> 36.58319446 | AC37: =(AB37-ROUNDDOWN(AB37,0))*60 -> 34.99166757 | AE37: =($V$10*60*60+W36*60)/3600 -> 13.11416808 | AF37: =(AE37-ROUNDDOWN(AE37,0))*60 -> 6.85008486 | AG37: =(AF37-ROUNDDOWN(AF37,0)) -> 0.8500848596
A38: 6 | B38: -14 | C38: 1 | D38: -14.01666667 | AA38: =(AD38/3600) -> 31.60983799 | AB38: =(AA38-ROUNDDOWN(AA38,0))*60 -> 36.59027933 | AC38: =(AB38-ROUNDDOWN(AB38,0))*60 -> 35.41676 | AD38: =($Z$6*3600+Y36*60+Z36) -> 113795.4168
A39: 7 | B39: -14 | C39: 5 | D39: -14.08333333 | V39: X am 0° - Meridian= | W39: =($V$9+((1.1574074074*10^-5)*$Y$13)) -> 15.02487928 | X39: (n-ter Tag) | Y39: MIN | Z39: SEC | AA39: WAHRE ORTSZEIT AM ZIELORT (std:min:sec)
A40: 8 | B40: -14 | C40: 7 | D40: -14.11666667 | U40: JULI | V40: Y gleitende ZG am 0°-Meridian= | W40: =BERECHNUNG!$W$40 -> -6.520822038 | X40: Y = | Y40: =ROUNDDOWN(W40,0) -> -6 | Z40: =IF(Y40>=0,ROUND(ABS(W40-Y40)*60,0),-ROUND(ABS(W40-Y40)*60,0)) -> -31 | AA40: =IF($V$8>=0,ROUNDDOWN(AA41,0),ROUNDDOWN(AA42*-1,0)) -> 7 | AB40: =IF($V$8>=0,ROUNDDOWN(AB41,0),ROUNDDOWN(AB42,0)) -> 33 | AC40: =IF($V$8>=0,ROUNDDOWN(AC41,0),ROUNDUP(AC42,0)) -> 22 | AD40: 7 | AE40: =ROUNDDOWN(AE41,0) -> 13 | AF40: =ROUNDDOWN(AF41,0) -> 3 | AG40: =ROUND(AG41*60,0) -> 38
A41: 9 | B41: -14 | C41: 9 | D41: -14.15 | AA41: =($V$8*60*60+W40*60)/3600 -> 7.556157622 | AB41: =(AA41-ROUNDDOWN(AA41,0))*60 -> 33.3694573 | AC41: =(AB41-ROUNDDOWN(AB41,0))*60 -> 22.16743774 | AE41: =($V$10*60*60+W40*60)/3600 -> 13.06060579 | AF41: =(AE41-ROUNDDOWN(AE41,0))*60 -> 3.636347696 | AG41: =(AF41-ROUNDDOWN(AF41,0)) -> 0.6363476956
A42: 10 | B42: -14 | C42: 10 | D42: -14.16666667 | AA42: =(AD42/3600) -> 31.55622688 | AB42: =(AA42-ROUNDDOWN(AA42,0))*60 -> 33.37361267 | AC42: =(AB42-ROUNDDOWN(AB42,0))*60 -> 22.41676 | AD42: =($Z$6*3600+Y40*60+Z40) -> 113602.4168
A43: 11 | B43: -14 | C43: 10 | D43: -14.16666667 | V43: X am 0° - Meridian= | W43: =($V$9+((1.1574074074*10^-5)*$Y$13)) -> 15.02487928 | X43: (n-ter Tag) | Y43: MIN | Z43: SEC | AA43: WAHRE ORTSZEIT AM ZIELORT (std:min:sec)
A44: 12 | B44: -14 | C44: 10 | D44: -14.16666667 | U44: AUGUST | V44: Y gleitende ZG am 0°-Meridian= | W44: =BERECHNUNG!$W$44 -> -1.201571744 | X44: Y = | Y44: =ROUNDDOWN(W44,0) -> -1 | Z44: =IF(Y44>=0,ROUND(ABS(W44-Y44)*60,0),-ROUND(ABS(W44-Y44)*60,0)) -> -12 | AA44: =IF($V$8>=0,ROUNDDOWN(AA45,0),ROUNDDOWN(AA46*-1,0)) -> 7 | AB44: =IF($V$8>=0,ROUNDDOWN(AB45,0),ROUNDDOWN(AB46,0)) -> 38 | AC44: =IF($V$8>=0,ROUNDDOWN(AC45,0),ROUNDUP(AC46,0)) -> 41 | AD44: 8 | AE44: =ROUNDDOWN(AE45,0) -> 13 | AF44: =ROUNDDOWN(AF45,0) -> 8 | AG44: =ROUND(AG45*60,0) -> 57
A45: 13 | B45: -14 | C45: 9 | D45: -14.15 | AA45: =($V$8*60*60+W44*60)/3600 -> 7.644811793 | AB45: =(AA45-ROUNDDOWN(AA45,0))*60 -> 38.68870759 | AC45: =(AB45-ROUNDDOWN(AB45,0))*60 -> 41.32245539 | AE45: =($V$10*60*60+W44*60)/3600 -> 13.14925997 | AF45: =(AE45-ROUNDDOWN(AE45,0))*60 -> 8.95559799 | AG45: =(AF45-ROUNDDOWN(AF45,0)) -> 0.9555979898
A46: 14 | B46: -14 | C46: 7 | D46: -14.11666667 | AA46: =(AD46/3600) -> 31.64483799 | AB46: =(AA46-ROUNDDOWN(AA46,0))*60 -> 38.69027933 | AC46: =(AB46-ROUNDDOWN(AB46,0))*60 -> 41.41676 | AD46: =($Z$6*3600+Y44*60+Z44) -> 113921.4168
A47: 15 | B47: -14 | C47: 4 | D47: -14.06666667 | V47: X am 0° - Meridian= | W47: =($V$9+((1.1574074074*10^-5)*$Y$13)) -> 15.02487928 | X47: (n-ter Tag) | Y47: MIN | Z47: SEC | AA47: WAHRE ORTSZEIT AM ZIELORT (std:min:sec)
A48: 16 | B48: -14 | C48: 1 | D48: -14.01666667 | U48: SEPTEMBER | V48: Y gleitende ZG am 0°-Meridian= | W48: =BERECHNUNG!$W$48 -> 9.407840483 | X48: Y = | Y48: =ROUNDDOWN(W48,0) -> 9 | Z48: =IF(Y48>=0,ROUND(ABS(W48-Y48)*60,0),-ROUND(ABS(W48-Y48)*60,0)) -> 24 | AA48: =IF($V$8>=0,ROUNDDOWN(AA49,0),ROUNDDOWN(AA50*-1,0)) -> 7 | AB48: =IF($V$8>=0,ROUNDDOWN(AB49,0),ROUNDDOWN(AB50,0)) -> 49 | AC48: =IF($V$8>=0,ROUNDDOWN(AC49,0),ROUNDUP(AC50,0)) -> 17 | AD48: 9 | AE48: =ROUNDDOWN(AE49,0) -> 13 | AF48: =ROUNDDOWN(AF49,0) -> 19 | AG48: =ROUND(AG49*60,0) -> 34
A49: 17 | B49: -13 | C49: 57 | D49: -13.95 | AA49: =($V$8*60*60+W48*60)/3600 -> 7.82163533 | AB49: =(AA49-ROUNDDOWN(AA49,0))*60 -> 49.29811982 | AC49: =(AB49-ROUNDDOWN(AB49,0))*60 -> 17.88718899 | AE49: =($V$10*60*60+W48*60)/3600 -> 13.3260835 | AF49: =(AE49-ROUNDDOWN(AE49,0))*60 -> 19.56501022 | AG49: =(AF49-ROUNDDOWN(AF49,0)) -> 0.5650102164
A50: 18 | B50: -13 | C50: 52 | D50: -13.86666667 | AA50: =(AD50/3600) -> 31.82150466 | AB50: =(AA50-ROUNDDOWN(AA50,0))*60 -> 49.29027933 | AC50: =(AB50-ROUNDDOWN(AB50,0))*60 -> 17.41676 | AD50: =($Z$6*3600+Y48*60+Z48) -> 114557.4168
A51: 19 | B51: -13 | C51: 47 | D51: -13.78333333 | V51: X am 0° - Meridian= | W51: =($V$9+((1.1574074074*10^-5)*$Y$13)) -> 15.02487928 | X51: (n-ter Tag) | Y51: MIN | Z51: SEC | AA51: WAHRE ORTSZEIT AM ZIELORT (std:min:sec)
A52: 20 | B52: -13 | C52: 41 | D52: -13.68333333 | U52: OKTOBER | V52: Y gleitende ZG am 0°-Meridian= | W52: =BERECHNUNG!$W$52 -> 16.2260259 | X52: Y = | Y52: =ROUNDDOWN(W52,0) -> 16 | Z52: =IF(Y52>=0,ROUND(ABS(W52-Y52)*60,0),-ROUND(ABS(W52-Y52)*60,0)) -> 14 | AA52: =IF($V$8>=0,ROUNDDOWN(AA53,0),ROUNDDOWN(AA54*-1,0)) -> 7 | AB52: =IF($V$8>=0,ROUNDDOWN(AB53,0),ROUNDDOWN(AB54,0)) -> 56 | AC52: =IF($V$8>=0,ROUNDDOWN(AC53,0),ROUNDUP(AC54,0)) -> 6 | AD52: 10 | AE52: =ROUNDDOWN(AE53,0) -> 13 | AF52: =ROUNDDOWN(AF53,0) -> 26 | AG52: =ROUND(AG53*60,0) -> 23
A53: 21 | B53: -13 | C53: 34 | D53: -13.56666667 | AA53: =($V$8*60*60+W52*60)/3600 -> 7.935271754 | AB53: =(AA53-ROUNDDOWN(AA53,0))*60 -> 56.11630523 | AC53: =(AB53-ROUNDDOWN(AB53,0))*60 -> 6.978313741 | AE53: =($V$10*60*60+W52*60)/3600 -> 13.43971993 | AF53: =(AE53-ROUNDDOWN(AE53,0))*60 -> 26.38319563 | AG53: =(AF53-ROUNDDOWN(AF53,0)) -> 0.383195629
A54: 22 | B54: -13 | C54: 27 | D54: -13.45 | AA54: =(AD54/3600) -> 31.93539354 | AB54: =(AA54-ROUNDDOWN(AA54,0))*60 -> 56.12361267 | AC54: =(AB54-ROUNDDOWN(AB54,0))*60 -> 7.41676 | AD54: =($Z$6*3600+Y52*60+Z52) -> 114967.4168
A55: 23 | B55: -13 | C55: 19 | D55: -13.31666667 | V55: X am 0° - Meridian= | W55: =($V$9+((1.1574074074*10^-5)*$Y$13)) -> 15.02487928 | X55: (n-ter Tag) | Y55: MIN | Z55: SEC | AA55: WAHRE ORTSZEIT AM ZIELORT (std:min:sec)
A56: 24 | B56: -13 | C56: 10 | D56: -13.16666667 | U56: NOVEMBER | V56: Y gleitende ZG am 0°-Meridian= | W56: =BERECHNUNG!$W$56 -> 12.14316405 | X56: Y = | Y56: =ROUNDDOWN(W56,0) -> 12 | Z56: =IF(Y56>=0,ROUND(ABS(W56-Y56)*60,0),-ROUND(ABS(W56-Y56)*60,0)) -> 9 | AA56: =IF($V$8>=0,ROUNDDOWN(AA57,0),ROUNDDOWN(AA58*-1,0)) -> 7 | AB56: =IF($V$8>=0,ROUNDDOWN(AB57,0),ROUNDDOWN(AB58,0)) -> 52 | AC56: =IF($V$8>=0,ROUNDDOWN(AC57,0),ROUNDUP(AC58,0)) -> 2 | AD56: 11 | AE56: =ROUNDDOWN(AE57,0) -> 13 | AF56: =ROUNDDOWN(AF57,0) -> 22 | AG56: =ROUND(AG57*60,0) -> 18
A57: 25 | B57: -13 | C57: 1 | D57: -13.01666667 | AA57: =($V$8*60*60+W56*60)/3600 -> 7.867224056 | AB57: =(AA57-ROUNDDOWN(AA57,0))*60 -> 52.03344338 | AC57: =(AB57-ROUNDDOWN(AB57,0))*60 -> 2.006602907 | AE57: =($V$10*60*60+W56*60)/3600 -> 13.37167223 | AF57: =(AE57-ROUNDDOWN(AE57,0))*60 -> 22.30033378 | AG57: =(AF57-ROUNDDOWN(AF57,0)) -> 0.3003337818
A58: 26 | B58: -12 | C58: 51 | D58: -12.85 | AA58: =(AD58/3600) -> 31.86733799 | AB58: =(AA58-ROUNDDOWN(AA58,0))*60 -> 52.04027933 | AC58: =(AB58-ROUNDDOWN(AB58,0))*60 -> 2.41676 | AD58: =($Z$6*3600+Y56*60+Z56) -> 114722.4168
A59: 27 | B59: -12 | C59: 40 | D59: -12.66666667 | V59: X am 0° - Meridian= | W59: =($V$9+((1.1574074074*10^-5)*$Y$13)) -> 15.02487928 | X59: (n-ter Tag) | Y59: MIN | Z59: SEC | AA59: WAHRE ORTSZEIT AM ZIELORT (std:min:sec)
A60: 28 | B60: -12 | C60: 29 | D60: -12.48333333 | U60: DEZEMBER | V60: Y gleitende ZG am 0°-Meridian= | W60: =BERECHNUNG!$W$60 -> -1.393456174 | X60: Y = | Y60: =ROUNDDOWN(W60,0) -> -1 | Z60: =IF(Y60>=0,ROUND(ABS(W60-Y60)*60,0),-ROUND(ABS(W60-Y60)*60,0)) -> -24 | AA60: =IF($V$8>=0,ROUNDDOWN(AA61,0),ROUNDDOWN(AA62*-1,0)) -> 7 | AB60: =IF($V$8>=0,ROUNDDOWN(AB61,0),ROUNDDOWN(AB62,0)) -> 38 | AC60: =IF($V$8>=0,ROUNDDOWN(AC61,0),ROUNDUP(AC62,0)) -> 29 | AD60: 12 | AE60: =ROUNDDOWN(AE61,0) -> 13 | AF60: =ROUNDDOWN(AF61,0) -> 8 | AG60: =ROUND(AG61*60,0) -> 46
A61: 29 | AA61: =($V$8*60*60+W60*60)/3600 -> 7.641613719 | AB61: =(AA61-ROUNDDOWN(AA61,0))*60 -> 38.49682316 | AC61: =(AB61-ROUNDDOWN(AB61,0))*60 -> 29.80938958 | AE61: =($V$10*60*60+W60*60)/3600 -> 13.14606189 | AF61: =(AE61-ROUNDDOWN(AE61,0))*60 -> 8.76371356 | AG61: =(AF61-ROUNDDOWN(AF61,0)) -> 0.7637135596
A62: 2001-03-01 | B62: -12 | C62: 18 | D62: =(B62-(C62/60)) -> -12.3 | AA62: =(AD62/3600) -> 31.64150466 | AB62: =(AA62-ROUNDDOWN(AA62,0))*60 -> 38.49027933 | AC62: =(AB62-ROUNDDOWN(AB62,0))*60 -> 29.41676 | AD62: =($Z$6*3600+Y60*60+Z60) -> 113909.4168
A63: 2 | B63: -12 | C63: 6 | D63: -12.1
A64: 3 | B64: -11 | C64: 53 | D64: -11.88333333
A65: 4 | B65: -11 | C65: 40 | D65: -11.66666667
A66: 5 | B66: -11 | C66: 27 | D66: -11.45
A67: 6 | B67: -11 | C67: 13 | D67: -11.21666667
A68: 7 | B68: -10 | C68: 59 | D68: -10.98333333
A69: 8 | B69: -10 | C69: 44 | D69: -10.73333333
A70: 9 | B70: -10 | C70: 29 | D70: -10.48333333
A71: 10 | B71: -10 | C71: 14 | D71: -10.23333333
A72: 11 | B72: -9 | C72: 58 | D72: -9.966666667
A73: 12 | B73: -9 | C73: 42 | D73: -9.7
A74: 13 | B74: -9 | C74: 26 | D74: -9.433333333
A75: 14 | B75: -9 | C75: 10 | D75: -9.166666667
A76: 15 | B76: -8 | C76: 53 | D76: -8.883333333
A77: 16 | B77: -8 | C77: 36 | D77: -8.6
A78: 17 | B78: -8 | C78: 19 | D78: -8.316666667
A79: 18 | B79: -8 | C79: 2 | D79: -8.033333333
A80: 19 | B80: -7 | C80: 44 | D80: -7.733333333
A81: 20 | B81: -7 | C81: 27 | D81: -7.45
A82: 21 | B82: -7 | C82: 9 | D82: -7.15
A83: 22 | B83: -6 | C83: 51 | D83: -6.85
A84: 23 | B84: -6 | C84: 33 | D84: -6.55
A85: 24 | B85: -6 | C85: 15 | D85: -6.25
A86: 25 | B86: -5 | C86: 57 | D86: -5.95
A87: 26 | B87: -5 | C87: 39 | D87: -5.65
A88: 27 | B88: -5 | C88: 21 | D88: -5.35
A89: 28 | B89: -5 | C89: 3 | D89: -5.05
A90: 29 | B90: -4 | C90: 45 | D90: -4.75
A91: 30 | B91: -4 | C91: 27 | D91: -4.45
A92: 31 | B92: -4 | C92: 9 | D92: -4.15
A93: April: | D93: April
A94: 1 | B94: -3 | C94: 51 | D94: =(B94-(C94/60)) -> -3.85
A95: =(A94+1) -> 2 | B95: -3 | C95: 33 | D95: -3.55
A96: 3 | B96: -3 | C96: 15 | D96: -3.25
A97: 4 | B97: -2 | C97: 58 | D97: -2.966666667
A98: 5 | B98: -2 | C98: 40 | D98: -2.666666667
A99: 6 | B99: -2 | C99: 23 | D99: -2.383333333
A100: 7 | B100: -2 | C100: 6 | D100: -2.1
A101: 8 | B101: -1 | C101: 50 | D101: -1.833333333
A102: 9 | B102: -1 | C102: 33 | D102: -1.55
A103: 10 | B103: -1 | C103: 17 | D103: -1.283333333
A104: 11 | B104: -1 | C104: 1 | D104: -1.016666667
A105: 12 | B105: 0 | C105: 46 | D105: -0.7666666667
A106: 13 | B106: 0 | C106: 30 | D106: -0.5
A107: 14 | B107: 0 | C107: 15 | D107: -0.25
A108: 15 | B108: 0 | C108: 1 | D108: -0.01666666667
A109: 16 | B109: 0 | C109: 13 | D109: =(B109+(C109/60)) -> 0.2166666667
A110: 17 | B110: 0 | C110: 27 | D110: 0.45
A111: 18 | B111: 0 | C111: 41 | D111: 0.6833333333
A112: 19 | B112: 0 | C112: 54 | D112: 0.9
A113: 20 | B113: 1 | C113: 6 | D113: 1.1
A114: 21 | B114: 1 | C114: 18 | D114: 1.3
A115: 22 | B115: 1 | C115: 30 | D115: 1.5
A116: 23 | B116: 1 | C116: 41 | D116: 1.683333333
A117: 24 | B117: 1 | C117: 52 | D117: 1.866666667
A118: 25 | B118: 2 | C118: 3 | D118: 2.05
A119: 26 | B119: 2 | C119: 13 | D119: 2.216666667
A120: 27 | B120: 2 | C120: 22 | D120: 2.366666667
A121: 28 | B121: 2 | C121: 31 | D121: 2.516666667
A122: 29 | B122: 2 | C122: 40 | D122: 2.666666667
A123: 30 | B123: 2 | C123: 48 | D123: 2.8
A124: Mai | D124: Mai | E124: Juni | F124: Juli | G124: August
A125: 1 | B125: 2 | C125: 55 | D125: =(B125+(C125/60)) -> 2.916666667 | E125: 2.166666667 | F125: -3.883333333 | G125: -6.366666667 | I125: GRAFIKEN SIEHE "BERECHNUNG"
A126: 2 | B126: 3 | C126: 2 | D126: 3.033333333 | E126: 2.016666667 | F126: -4.066666667 | G126: -6.283333333
A127: 3 | B127: 3 | C127: 8 | D127: 3.133333333 | E127: 1.85 | F127: -4.25 | G127: -6.216666667
A128: 4 | B128: 3 | C128: 14 | D128: 3.233333333 | E128: 1.683333333 | F128: -4.433333333 | G128: -6.116666667
A129: 5 | B129: 3 | C129: 20 | D129: 3.333333333 | E129: 1.5 | F129: -4.616666667 | G129: -6.016666667
A130: 6 | B130: 3 | C130: 24 | D130: 3.4 | E130: 1.333333333 | F130: -4.783333333 | G130: -5.916666667
A131: 7 | B131: 3 | C131: 28 | D131: 3.466666667 | E131: 1.133333333 | F131: -4.95 | G131: -5.8
A132: 8 | B132: 3 | C132: 32 | D132: 3.533333333 | E132: 0.95 | F132: -5.1 | G132: -5.666666667
A133: 9 | B133: 3 | C133: 35 | D133: 3.583333333 | E133: 0.75 | F133: -5.25 | G133: -5.533333333
A134: 10 | B134: 3 | C134: 37 | D134: 3.616666667 | E134: 0.55 | F134: -5.4 | G134: -5.383333333
A135: 11 | B135: 3 | C135: 39 | D135: 3.65 | E135: 0.35 | F135: -5.533333333 | G135: -5.233333333
A136: 12 | B136: 3 | C136: 40 | D136: 3.666666667 | E136: 0.15 | F136: -5.666666667 | G136: -5.066666667
A137: 13 | B137: 3 | C137: 41 | D137: 3.683333333 | E137: 0.06666666667 | F137: -5.783333333 | G137: -4.883333333
A138: 14 | B138: 3 | C138: 41 | D138: 3.683333333 | E138: 0.2833333333 | F138: -5.9 | G138: -4.7
A139: 15 | B139: 3 | C139: 40 | D139: 3.666666667 | E139: 0.5 | F139: -6 | G139: -4.516666667
A140: 16 | B140: 3 | C140: 39 | D140: 3.65 | E140: 0.7166666667 | F140: -6.1 | G140: -4.316666667
A141: 17 | B141: 3 | C141: 37 | D141: 3.616666667 | E141: 0.9333333333 | F141: -6.2 | G141: -4.1
A142: 18 | B142: 3 | C142: 35 | D142: 3.583333333 | E142: 1.15 | F142: -6.266666667 | G142: -3.883333333
A143: 19 | B143: 3 | C143: 32 | D143: 3.533333333 | E143: 1.366666667 | F143: -6.35 | G143: -3.65
A144: 20 | B144: 3 | C144: 28 | D144: 3.466666667 | E144: 1.583333333 | F144: -6.4 | G144: -3.416666667
A145: 21 | B145: 3 | C145: 25 | D145: 3.416666667 | E145: 1.8 | F145: -6.45 | G145: -3.166666667
A146: 22 | B146: 3 | C146: 20 | D146: 3.333333333 | E146: 2.016666667 | F146: -6.5 | G146: -2.916666667
A147: 23 | B147: 3 | C147: 15 | D147: 3.25 | E147: 2.233333333 | F147: -6.533333333 | G147: -2.666666667
A148: 24 | B148: 3 | C148: 10 | D148: 3.166666667 | E148: 2.45 | F148: -6.55 | G148: -2.4
A149: 25 | B149: 3 | C149: 4 | D149: 3.066666667 | E149: 2.666666667 | F149: -6.566666667 | G149: -2.116666667
A150: 26 | B150: 2 | C150: 58 | D150: 2.966666667 | E150: 2.883333333 | F150: -6.566666667 | G150: -1.833333333
A151: 27 | B151: 2 | C151: 51 | D151: 2.85 | E151: 3.083333333 | F151: -6.55 | G151: -1.55
A152: 28 | B152: 2 | C152: 44 | D152: 2.733333333 | E152: 3.283333333 | F152: -6.533333333 | G152: -1.25
A153: 29 | B153: 2 | C153: 36 | D153: 2.6 | E153: 3.5 | F153: -6.5 | G153: -0.95
A154: 30 | B154: 2 | C154: 28 | D154: 2.466666667 | E154: 3.683333333 | F154: -6.466666667 | G154: -0.65
A155: 31 | B155: 2 | C155: 19 | D155: 2.316666667 | F155: -6.416666667 | G155: -0.3333333333
A156: Juni | D156: Juni
A157: 1 | B157: 2 | C157: 10 | D157: =(B157+(C157/60)) -> 2.166666667
A158: 2 | B158: 2 | C158: 1 | D158: 2.016666667
A159: 3 | B159: 1 | C159: 51 | D159: 1.85
A160: 4 | B160: 1 | C160: 41 | D160: 1.683333333
A161: 5 | B161: 1 | C161: 30 | D161: 1.5
A162: 6 | B162: 1 | C162: 20 | D162: 1.333333333
A163: 7 | B163: 1 | C163: 8 | D163: 1.133333333
A164: 8 | B164: 0 | C164: 57 | D164: 0.95
A165: 9 | B165: 0 | C165: 45 | D165: 0.75
A166: 10 | B166: 0 | C166: 33 | D166: 0.55
A167: 11 | B167: 0 | C167: 21 | D167: 0.35
A168: 12 | B168: 0 | C168: 9 | D168: 0.15
A169: 13 | B169: 0 | C169: 4 | D169: =-(B169-(C169/60)) -> 0.06666666667
A170: 14 | B170: 0 | C170: 17 | D170: =-(B170-(C170/60)) -> 0.2833333333
A171: 15 | B171: 0 | C171: 30 | D171: 0.5
A172: 16 | B172: 0 | C172: 43 | D172: 0.7166666667
A173: 17 | B173: 0 | C173: 56 | D173: 0.9333333333
A174: 18 | B174: -1 | C174: 9 | D174: 1.15
A175: 19 | B175: -1 | C175: 22 | D175: 1.366666667
A176: 20 | B176: -1 | C176: 35 | D176: 1.583333333
A177: 21 | B177: -1 | C177: 48 | D177: 1.8
A178: 22 | B178: -2 | C178: 1 | D178: 2.016666667
A179: 23 | B179: -2 | C179: 14 | D179: 2.233333333
A180: 24 | B180: -2 | C180: 27 | D180: 2.45
A181: 25 | B181: -2 | C181: 40 | D181: 2.666666667
A182: 26 | B182: -2 | C182: 53 | D182: 2.883333333
A183: 27 | B183: -3 | C183: 5 | D183: 3.083333333
A184: 28 | B184: -3 | C184: 17 | D184: 3.283333333
A185: 29 | B185: -3 | C185: 30 | D185: 3.5
A186: 30 | B186: -3 | C186: 41 | D186: 3.683333333
A187: Juli | D187: Juli
A188: 1 | B188: =(3*-1) -> -3 | C188: 53 | D188: =(B188-(C188/60)) -> -3.883333333
A189: 2 | B189: -4 | C189: 4 | D189: =(B189-(C189/60)) -> -4.066666667
A190: 3 | B190: -4 | C190: 15 | D190: -4.25
A191: 4 | B191: -4 | C191: 26 | D191: -4.433333333
A192: 5 | B192: -4 | C192: 37 | D192: -4.616666667
A193: 6 | B193: -4 | C193: 47 | D193: -4.783333333
A194: 7 | B194: -4 | C194: 57 | D194: -4.95
A195: 8 | B195: -5 | C195: 6 | D195: -5.1
A196: 9 | B196: -5 | C196: 15 | D196: -5.25
A197: 10 | B197: -5 | C197: 24 | D197: -5.4
A198: 11 | B198: -5 | C198: 32 | D198: -5.533333333
A199: 12 | B199: -5 | C199: 40 | D199: -5.666666667
A200: 13 | B200: -5 | C200: 47 | D200: -5.783333333
... 177 more rows

Sheet BERECHNUNG (hidden)
A1: 1 | B1: -3 | C1: 33 | D1: =(C1/60) -> 0.55 | F1: Januar | G1: Februar | H1: März | I1: April
A2: 2 | B2: -4 | C2: 1 | D2: 0.01666666667 | E2: 1 | F2: =(B1-D1) -> -3.55 | G2: -13.53333333 | H2: -12.3 | I2: -3.85 | V2: std | W2: min | X2: sec | Y2: Summe sec
A3: 3 | B3: -4 | C3: 28 | D3: 0.4666666667 | E3: 2 | F3: -4.016666667 | G3: -13.66666667 | H3: -12.1 | I3: -3.55 | U3: ARMBAND - UHRZEIT (mein Standort) | V3: ='EINGABEN UND AUSDRUCK'!$D$8 -> 9 | W3: ='EINGABEN UND AUSDRUCK'!$E$8 -> 43 | X3: ='EINGABEN UND AUSDRUCK'!$F$8 -> 21 | Y3: =(3600*V3+60*W3+X3) -> 35001
A4: 4 | B4: -4 | C4: 55 | D4: 0.9166666667 | E4: 3 | F4: -4.466666667 | G4: -13.76666667 | H4: -11.88333333 | I4: -3.25 | U4: (berichtigt auf UTC; CH / MEZ: Sommer -2, Winter - 1) | X4: Längngrad - Zuschalag | Y4: =(V5*4*60) -> 2059.430184 | Z4: Wenn V8 = negativ, dann 24 + (Y6/3600)
A5: 5 | B5: -5 | C5: 22 | D5: 0.3666666667 | E5: 4 | F5: -4.916666667 | G5: -13.86666667 | H5: -11.66666667 | I5: -2.966666667 | U5: LÄNGENGRAD (mein Standort) | V5: ='EINGABEN UND AUSDRUCK'!$D$11 -> 8.5809591 | X5: Summe am Standort | Y5: =(Y3+Y4) -> 37060.43018 | Z5: ↓
A6: 6 | B6: -5 | C6: 49 | D6: 0.8166666667 | E6: 5 | F6: -5.366666667 | G6: -13.95 | H6: -11.45 | I6: -2.666666667 | U6: (z.B. Google Maps) | X6: Summe am Zielort | Y6: =(Y5+((V7-V5)*4*60)+((0)*0)) -> 17244.41676 | Z6: =(24+(Y6/3600)) -> 28.79011577
A7: 7 | B7: -6 | C7: 15 | D7: 0.25 | E7: 6 | F7: -5.816666667 | G7: -14.01666667 | H7: -11.21666667 | I7: -2.383333333 | U7: LÄNGENGRAD (Zielort) | V7: ='EINGABEN UND AUSDRUCK'!$D$14 -> -73.9857635 | Y7: ='EINGABEN UND AUSDRUCK'!$E$14 -> NEW YORK EMP.ST. BUILDING
A8: 8 | B8: -6 | C8: 40 | D8: 0.6666666667 | E8: 7 | F8: -6.25 | G8: -14.08333333 | H8: -10.98333333 | I8: -2.1 | U8: (z.B. Google Maps) MOZ am Zielort | V8: =(Y6/3600) -> 4.790115767 | W8: =IF(V8>=0,(V8-V13),1+(V8-ROUNDDOWN(V8,0))) -> 0.7901157667 | X8: =(W8*60) -> 47.406946 | Y8: Zerlegung
A9: 9 | B9: -7 | C9: 5 | D9: 0.08333333333 | E9: 8 | F9: -6.666666667 | G9: -14.11666667 | H9: -10.73333333 | I9: -1.833333333 | U9: "n - ter" - TAG DES MONATS (mein Standort) | V9: ='STARTE DIE UHR!'!$B$11 -> 28 | W9: JAHRZAHL (-DEZIMALE) DER ZEITGLEICHUNGS-TABELLE | Y9: 26
A10: 10 | B10: -7 | C10: 29 | D10: 0.4833333333 | E10: 9 | F10: -7.083333333 | G10: -14.15 | H10: -10.48333333 | I10: -1.55 | U10: MOZ am Standort | V10: =(Y5/3600) -> 10.29456394 | W10: =V10-ROUNDDOWN(V10,0) -> 0.29456394 | X10: =(W10*60) -> 17.6738364
A11: 11 | B11: -7 | C11: 53 | D11: 0.8833333333 | E11: 10 | F11: -7.483333333 | G11: -14.16666667 | H11: -10.23333333 | I11: -1.283333333 | V11: MITTLERE ORTSZEIT AM ZIELORT (MOZ) | Y11: Summendiff. sec für
A12: 12 | B12: -8 | C12: 16 | D12: 0.2666666667 | E12: 11 | F12: -7.883333333 | G12: -14.16666667 | H12: -9.966666667 | I12: -1.016666667 | V12: std | W12: min | X12: sec | Y12: Zeitgleichung "vor/nach" 12:00
A13: 13 | B13: -8 | C13: 39 | D13: 0.65 | E13: 12 | F13: -8.266666667 | G13: -14.16666667 | H13: -9.7 | I13: -0.7666666667 | V13: =IF($V$8>=0,ROUNDDOWN($V$8,0),ROUNDDOWN(-1*$V$14,0)) -> 4 | W13: =ROUNDDOWN(IF($V$8>=0,ROUNDDOWN($X$8,0),W14*60),0) -> 47 | X13: =IF(V8>=0,ROUND((X8-W13)*60,0),ROUND(X14*60,0)) -> 24 | Y13: =((V17-12)*60*60+W17*60+X17)-((V5/15)*60*60) -> -8199.430184
A14: 14 | B14: -9 | C14: 1 | D14: 0.01666666667 | E14: 13 | F14: -8.65 | G14: -14.15 | H14: -9.433333333 | I14: -0.5 | V14: =$Z$6 -> 28.79011577 | W14: =($V$14-ROUNDDOWN($V$14,0)) -> 0.7901157667 | X14: =(W14*60-W13) -> 0.406946 | Y14: GEMESSEN AM 0° - MERIDIAN
A15: 15 | B15: -9 | C15: 23 | D15: 0.3833333333 | E15: 14 | F15: -9.016666667 | G15: -14.11666667 | H15: -9.166666667 | I15: -0.25 | V15: X am 0° - Meridian= | W15: =($V$9+((1.1574074074*10^-5)*$Y$13)) -> 27.90509919 | X15: (n-ter Tag) | Y15: MIN | Z15: SEC | AA15: WAHRE ORTSZEIT AM ZIELORT (WOZ) (std:min:sec) | AD15: Monat | AE15: WAHRE ORTSZEIT AM STANDORT
A16: 16 | B16: -9 | C16: 43 | D16: 0.7166666667 | E16: 15 | F16: -9.383333333 | G16: -14.06666667 | H16: -8.883333333 | I16: -0.01666666667 | U16: JANUAR | V16: Y gleitende ZG am 0°-Meridian= | W16: =(0.0056*W15^2-0.5078*W15-3.1064) -> -12.91591983 | X16: Y = | Y16: =ROUNDDOWN(W16,0) -> -12 | Z16: =IF(Y16>=0,ROUND(ABS(W16-Y16)*60,0),-ROUND(ABS(W16-Y16)*60,0)) -> -55 | AA16: =IF($V$8>=0,ROUNDDOWN(AA17,0),ROUNDDOWN(AA18*-1,0)) -> 4 | AB16: =IF($V$8>=0,ROUNDDOWN(AB17,0),ROUNDDOWN(AB18,0)) -> 34 | AC16: =IF($V$8>=0,ROUNDDOWN(AC17,0),ROUNDUP(AC18,0)) -> 29 | AD16: 1 | AE16: =ROUNDDOWN(AE17,0) -> 10 | AF16: =ROUNDDOWN(AF17,0) -> 4 | AG16: =ROUND(AG17*60,0) -> 45
A17: 17 | B17: -10 | C17: 3 | D17: 0.05 | E17: 16 | F17: -9.716666667 | G17: -14.01666667 | H17: -8.6 | I17: 0.2166666667 | U17: Hilfszeile: MOZ am Standort (std:min:sec) | V17: =ROUNDDOWN($V$10,0) -> 10 | W17: =ROUNDDOWN($X$10,0) -> 17 | X17: =ROUND((X10-W17)*60,0) -> 40 | AA17: =($V$8*60*60+W16*60)/3600 -> 4.574850436 | AB17: =(AA17-ROUNDDOWN(AA17,0))*60 -> 34.49102617 | AC17: =(AB17-ROUNDDOWN(AB17,0))*60 -> 29.46157034 | AE17: =($V$10*60*60+W16*60)/3600 -> 10.07929861 | AF17: =(AE17-ROUNDDOWN(AE17,0))*60 -> 4.757916572 | AG17: =(AF17-ROUNDDOWN(AF17,0)) -> 0.7579165723
A18: 18 | B18: -10 | C18: 23 | D18: 0.3833333333 | E18: 17 | F18: -10.05 | G18: -13.95 | H18: -8.316666667 | I18: 0.45 | AA18: =(AD18/3600) -> 28.57483799 | AB18: =(AA18-ROUNDDOWN(AA18,0))*60 -> 34.49027933 | AC18: =(AB18-ROUNDDOWN(AB18,0))*60 -> 29.41676 | AD18: =($Z$6*3600+Y16*60+Z16) -> 102869.4168
A19: 19 | B19: -10 | C19: 42 | D19: 0.7 | E19: 18 | F19: -10.38333333 | G19: -13.86666667 | H19: -8.033333333 | I19: 0.6833333333 | V19: X am 0° - Meridian= | W19: =($V$9+((1.1574074074*10^-5)*$Y$13)) -> 27.90509919 | X19: (n-ter Tag) | Y19: MIN | Z19: SEC | AA19: WAHRE ORTSZEIT AM ZIELORT (std:min:sec)
A20: 20 | B20: -10 | C20: 59 | D20: 0.9833333333 | E20: 19 | F20: -10.7 | G20: -13.78333333 | H20: -7.733333333 | I20: 0.9 | U20: FEBRUAR | V20: Y gleitende ZG am 0°-Meridian= | W20: =(0.006*W19^2-0.1334*W19-13.438) -> -12.48837287 | X20: Y = | Y20: =ROUNDDOWN(W20,0) -> -12 | Z20: =IF(Y20>=0,ROUND(ABS(W20-Y20)*60,0),-ROUND(ABS(W20-Y20)*60,0)) -> -29 | AA20: =IF($V$8>=0,ROUNDDOWN(AA21,0),ROUNDDOWN(AA22*-1,0)) -> 4 | AB20: =IF($V$8>=0,ROUNDDOWN(AB21,0),ROUNDDOWN(AB22,0)) -> 34 | AC20: =IF($V$8>=0,ROUNDDOWN(AC21,0),ROUNDUP(AC22,0)) -> 55 | AD20: 2 | AE20: =ROUNDDOWN(AE21,0) -> 10 | AF20: =ROUNDDOWN(AF21,0) -> 5 | AG20: =ROUND(AG21*60,0) -> 11
A21: 21 | B21: -11 | C21: 17 | D21: 0.2833333333 | E21: 20 | F21: -10.98333333 | G21: -13.68333333 | H21: -7.45 | I21: 1.1 | AA21: =($V$8*60*60+W20*60)/3600 -> 4.581976219 | AB21: =(AA21-ROUNDDOWN(AA21,0))*60 -> 34.91857313 | AC21: =(AB21-ROUNDDOWN(AB21,0))*60 -> 55.11438794 | AE21: =($V$10*60*60+W20*60)/3600 -> 10.08642439 | AF21: =(AE21-ROUNDDOWN(AE21,0))*60 -> 5.185463532 | AG21: =(AF21-ROUNDDOWN(AF21,0)) -> 0.1854635324
A22: 22 | B22: -11 | C22: 33 | D22: 0.55 | E22: 21 | F22: -11.28333333 | G22: -13.56666667 | H22: -7.15 | I22: 1.3 | AA22: =(AD22/3600) -> 28.58206021 | AB22: =(AA22-ROUNDDOWN(AA22,0))*60 -> 34.92361267 | AC22: =(AB22-ROUNDDOWN(AB22,0))*60 -> 55.41676 | AD22: =($Z$6*3600+Y20*60+Z20) -> 102895.4168
A23: 23 | B23: -11 | C23: 49 | D23: 0.8166666667 | E23: 22 | F23: -11.55 | G23: -13.45 | H23: -6.85 | I23: 1.5 | V23: X am 0° - Meridian= | W23: =($V$9+((1.1574074074*10^-5)*$Y$13)) -> 27.90509919 | X23: (n-ter Tag) | Y23: MIN | Z23: SEC | AA23: WAHRE ORTSZEIT AM ZIELORT (std:min:sec)
A24: 24 | B24: -12 | C24: 3 | D24: 0.05 | E24: 23 | F24: -11.81666667 | G24: -13.31666667 | H24: -6.55 | I24: 1.683333333 | U24: MÄRZ | V24: Y gleitende ZG am 0°-Meridian= | W24: =(0.0018*W23^2+0.2202*W23-12.611) -> -5.06464695 | X24: Y = | Y24: =ROUNDDOWN(W24,0) -> -5 | Z24: =IF(Y24>=0,ROUND(ABS(W24-Y24)*60,0),-ROUND(ABS(W24-Y24)*60,0)) -> -4 | AA24: =IF($V$8>=0,ROUNDDOWN(AA25,0),ROUNDDOWN(AA26*-1,0)) -> 4 | AB24: =IF($V$8>=0,ROUNDDOWN(AB25,0),ROUNDDOWN(AB26,0)) -> 42 | AC24: =IF($V$8>=0,ROUNDDOWN(AC25,0),ROUNDUP(AC26,0)) -> 20 | AD24: 3 | AE24: =ROUNDDOWN(AE25,0) -> 10 | AF24: =ROUNDDOWN(AF25,0) -> 12 | AG24: =ROUND(AG25*60,0) -> 37
A25: 25 | B25: -12 | C25: 17 | D25: 0.2833333333 | E25: 24 | F25: -12.05 | G25: -13.16666667 | H25: -6.25 | I25: 1.866666667 | AA25: =($V$8*60*60+W24*60)/3600 -> 4.705704984 | AB25: =(AA25-ROUNDDOWN(AA25,0))*60 -> 42.34229905 | AC25: =(AB25-ROUNDDOWN(AB25,0))*60 -> 20.53794302 | AE25: =($V$10*60*60+W24*60)/3600 -> 10.21015316 | AF25: =(AE25-ROUNDDOWN(AE25,0))*60 -> 12.60918945 | AG25: =(AF25-ROUNDDOWN(AF25,0)) -> 0.6091894503
A26: 26 | B26: -12 | C26: 31 | D26: 0.5166666667 | E26: 25 | F26: -12.28333333 | G26: -13.01666667 | H26: -5.95 | I26: 2.05 | AA26: =(AD26/3600) -> 28.70567132 | AB26: =(AA26-ROUNDDOWN(AA26,0))*60 -> 42.34027933 | AC26: =(AB26-ROUNDDOWN(AB26,0))*60 -> 20.41676 | AD26: =($Z$6*3600+Y24*60+Z24) -> 103340.4168
A27: 27 | B27: -12 | C27: 43 | D27: 0.7166666667 | E27: 26 | F27: -12.51666667 | G27: -12.85 | H27: -5.65 | I27: 2.216666667 | V27: X am 0° - Meridian= | W27: =($V$9+((1.1574074074*10^-5)*$Y$13)) -> 27.90509919 | X27: (n-ter Tag) | Y27: MIN | Z27: SEC | AA27: WAHRE ORTSZEIT AM ZIELORT (std:min:sec)
A28: 28 | B28: -12 | C28: 54 | D28: 0.9 | E28: 27 | F28: -12.71666667 | G28: -12.66666667 | H28: -5.35 | I28: 2.366666667 | U28: APRIL | V28: Y gleitende ZG am 0°-Meridian= | W28: =(-0.0029*W27^2+0.3223*W27-4.3157) -> 2.419899242 | X28: Y = | Y28: =ROUNDDOWN(W28,0) -> 2 | Z28: =IF(Y28>=0,ROUND(ABS(W28-Y28)*60,0),-ROUND(ABS(W28-Y28)*60,0)) -> 25 | AA28: =IF($V$8>=0,ROUNDDOWN(AA29,0),ROUNDDOWN(AA30*-1,0)) -> 4 | AB28: =IF($V$8>=0,ROUNDDOWN(AB29,0),ROUNDDOWN(AB30,0)) -> 49 | AC28: =IF($V$8>=0,ROUNDDOWN(AC29,0),ROUNDUP(AC30,0)) -> 49 | AD28: 4 | AE28: =ROUNDDOWN(AE29,0) -> 10 | AF28: =ROUNDDOWN(AF29,0) -> 20 | AG28: =ROUND(AG29*60,0) -> 6
A29: 29 | B29: -13 | C29: 5 | D29: 0.08333333333 | E29: 28 | F29: -12.9 | G29: -12.48333333 | H29: -5.05 | I29: 2.516666667 | AA29: =($V$8*60*60+W28*60)/3600 -> 4.830447421 | AB29: =(AA29-ROUNDDOWN(AA29,0))*60 -> 49.82684524 | AC29: =(AB29-ROUNDDOWN(AB29,0))*60 -> 49.61071453 | AE29: =($V$10*60*60+W28*60)/3600 -> 10.33489559 | AF29: =(AE29-ROUNDDOWN(AE29,0))*60 -> 20.09373564 | AG29: =(AF29-ROUNDDOWN(AF29,0)) -> 0.09373564223
A30: 30 | B30: -13 | C30: 15 | D30: 0.25 | E30: 29 | F30: -13.08333333 | H30: -4.75 | I30: 2.666666667 | AA30: =(AD30/3600) -> 28.83039354 | AB30: =(AA30-ROUNDDOWN(AA30,0))*60 -> 49.82361267 | AC30: =(AB30-ROUNDDOWN(AB30,0))*60 -> 49.41676 | AD30: =($Z$6*3600+Y28*60+Z28) -> 103789.4168
A31: 31 | B31: -13 | C31: 24 | D31: 0.4 | E31: 30 | F31: -13.25 | H31: -4.45 | I31: 2.8 | V31: X am 0° - Meridian= | W31: =($V$9+((1.1574074074*10^-5)*$Y$13)) -> 27.90509919 | X31: (n-ter Tag) | Y31: MIN | Z31: SEC | AA31: WAHRE ORTSZEIT AM ZIELORT (std:min:sec)
A32: Februar | D32: Februar | E32: 31 | F32: -13.4 | H32: -4.15 | U32: MAI | V32: Y gleitende ZG am 0°-Meridian= | W32: =(-0.0046*W31^2+0.1248*W31+2.8255) -> 2.7260614 | X32: Y = | Y32: =ROUNDDOWN(W32,0) -> 2 | Z32: =IF(Y32>=0,ROUND(ABS(W32-Y32)*60,0),-ROUND(ABS(W32-Y32)*60,0)) -> 44 | AA32: =IF($V$8>=0,ROUNDDOWN(AA33,0),ROUNDDOWN(AA34*-1,0)) -> 4 | AB32: =IF($V$8>=0,ROUNDDOWN(AB33,0),ROUNDDOWN(AB34,0)) -> 50 | AC32: =IF($V$8>=0,ROUNDDOWN(AC33,0),ROUNDUP(AC34,0)) -> 7 | AD32: 5 | AE32: =ROUNDDOWN(AE33,0) -> 10 | AF32: =ROUNDDOWN(AF33,0) -> 20 | AG32: =ROUND(AG33*60,0) -> 24
A33: 1 | B33: -13 | C33: 32 | D33: =(B33-(C33/60)) -> -13.53333333 | AA33: =($V$8*60*60+W32*60)/3600 -> 4.835550123 | AB33: =(AA33-ROUNDDOWN(AA33,0))*60 -> 50.1330074 | AC33: =(AB33-ROUNDDOWN(AB33,0))*60 -> 7.980443971 | AE33: =($V$10*60*60+W32*60)/3600 -> 10.3399983 | AF33: =(AE33-ROUNDDOWN(AE33,0))*60 -> 20.3998978 | AG33: =(AF33-ROUNDDOWN(AF33,0)) -> 0.3998977995
A34: 2 | B34: -13 | C34: 40 | D34: -13.66666667 | AA34: =(AD34/3600) -> 28.83567132 | AB34: =(AA34-ROUNDDOWN(AA34,0))*60 -> 50.14027933 | AC34: =(AB34-ROUNDDOWN(AB34,0))*60 -> 8.41676 | AD34: =($Z$6*3600+Y32*60+Z32) -> 103808.4168
A35: 3 | B35: -13 | C35: 46 | D35: -13.76666667 | V35: X am 0° - Meridian= | W35: =($V$9+((1.1574074074*10^-5)*$Y$13)) -> 27.90509919 | X35: (n-ter Tag) | Y35: MIN | Z35: SEC | AA35: WAHRE ORTSZEIT AM ZIELORT (std:min:sec)
A36: 4 | B36: -13 | C36: 52 | D36: -13.86666667 | U36: JUNI | V36: Y gleitende ZG am 0°-Meridian= | W36: =(-0.0006*W35^2-0.1879*W35+2.4035) -> -3.307084874 | X36: Y = | Y36: =ROUNDDOWN(W36,0) -> -3 | Z36: =IF(Y36>=0,ROUND(ABS(W36-Y36)*60,0),-ROUND(ABS(W36-Y36)*60,0)) -> -18 | AA36: =IF($V$8>=0,ROUNDDOWN(AA37,0),ROUNDDOWN(AA38*-1,0)) -> 4 | AB36: =IF($V$8>=0,ROUNDDOWN(AB37,0),ROUNDDOWN(AB38,0)) -> 44 | AC36: =IF($V$8>=0,ROUNDDOWN(AC37,0),ROUNDUP(AC38,0)) -> 5 | AD36: 6 | AE36: =ROUNDDOWN(AE37,0) -> 10 | AF36: =ROUNDDOWN(AF37,0) -> 14 | AG36: =ROUND(AG37*60,0) -> 22
A37: 5 | B37: -13 | C37: 57 | D37: -13.95 | AA37: =($V$8*60*60+W36*60)/3600 -> 4.734997685 | AB37: =(AA37-ROUNDDOWN(AA37,0))*60 -> 44.09986113 | AC37: =(AB37-ROUNDDOWN(AB37,0))*60 -> 5.991667574 | AE37: =($V$10*60*60+W36*60)/3600 -> 10.23944586 | AF37: =(AE37-ROUNDDOWN(AE37,0))*60 -> 14.36675153 | AG37: =(AF37-ROUNDDOWN(AF37,0)) -> 0.3667515262
A38: 6 | B38: -14 | C38: 1 | D38: -14.01666667 | AA38: =(AD38/3600) -> 28.73511577 | AB38: =(AA38-ROUNDDOWN(AA38,0))*60 -> 44.106946 | AC38: =(AB38-ROUNDDOWN(AB38,0))*60 -> 6.41676 | AD38: =($Z$6*3600+Y36*60+Z36) -> 103446.4168
A39: 7 | B39: -14 | C39: 5 | D39: -14.08333333 | V39: X am 0° - Meridian= | W39: =($V$9+((1.1574074074*10^-5)*$Y$13)) -> 27.90509919 | X39: (n-ter Tag) | Y39: MIN | Z39: SEC | AA39: WAHRE ORTSZEIT AM ZIELORT (std:min:sec)
A40: 8 | B40: -14 | C40: 7 | D40: -14.11666667 | U40: JULI | V40: Y gleitende ZG am 0°-Meridian= | W40: =(0.0043*W39^2-0.2233*W39-3.638) -> -6.520822038 | X40: Y = | Y40: =ROUNDDOWN(W40,0) -> -6 | Z40: =IF(Y40>=0,ROUND(ABS(W40-Y40)*60,0),-ROUND(ABS(W40-Y40)*60,0)) -> -31 | AA40: =IF($V$8>=0,ROUNDDOWN(AA41,0),ROUNDDOWN(AA42*-1,0)) -> 4 | AB40: =IF($V$8>=0,ROUNDDOWN(AB41,0),ROUNDDOWN(AB42,0)) -> 40 | AC40: =IF($V$8>=0,ROUNDDOWN(AC41,0),ROUNDUP(AC42,0)) -> 53 | AD40: 7 | AE40: =ROUNDDOWN(AE41,0) -> 10 | AF40: =ROUNDDOWN(AF41,0) -> 11 | AG40: =ROUND(AG41*60,0) -> 9
A41: 9 | B41: -14 | C41: 9 | D41: -14.15 | AA41: =($V$8*60*60+W40*60)/3600 -> 4.681435399 | AB41: =(AA41-ROUNDDOWN(AA41,0))*60 -> 40.88612396 | AC41: =(AB41-ROUNDDOWN(AB41,0))*60 -> 53.16743774 | AE41: =($V$10*60*60+W40*60)/3600 -> 10.18588357 | AF41: =(AE41-ROUNDDOWN(AE41,0))*60 -> 11.15301436 | AG41: =(AF41-ROUNDDOWN(AF41,0)) -> 0.1530143623
A42: 10 | B42: -14 | C42: 10 | D42: -14.16666667 | AA42: =(AD42/3600) -> 28.68150466 | AB42: =(AA42-ROUNDDOWN(AA42,0))*60 -> 40.89027933 | AC42: =(AB42-ROUNDDOWN(AB42,0))*60 -> 53.41676 | AD42: =($Z$6*3600+Y40*60+Z40) -> 103253.4168
A43: 11 | B43: -14 | C43: 10 | D43: -14.16666667 | V43: X am 0° - Meridian= | W43: =($V$9+((1.1574074074*10^-5)*$Y$13)) -> 27.90509919 | X43: (n-ter Tag) | Y43: MIN | Z43: SEC | AA43: WAHRE ORTSZEIT AM ZIELORT (std:min:sec)
A44: 12 | B44: -14 | C44: 10 | D44: -14.16666667 | U44: AUGUST | V44: Y gleitende ZG am 0°-Meridian= | W44: =(0.0043*W43^2+0.067*W43-6.4196) -> -1.201571744 | X44: Y = | Y44: =ROUNDDOWN(W44,0) -> -1 | Z44: =IF(Y44>=0,ROUND(ABS(W44-Y44)*60,0),-ROUND(ABS(W44-Y44)*60,0)) -> -12 | AA44: =IF($V$8>=0,ROUNDDOWN(AA45,0),ROUNDDOWN(AA46*-1,0)) -> 4 | AB44: =IF($V$8>=0,ROUNDDOWN(AB45,0),ROUNDDOWN(AB46,0)) -> 46 | AC44: =IF($V$8>=0,ROUNDDOWN(AC45,0),ROUNDUP(AC46,0)) -> 12 | AD44: 8 | AE44: =ROUNDDOWN(AE45,0) -> 10 | AF44: =ROUNDDOWN(AF45,0) -> 16 | AG44: =ROUND(AG45*60,0) -> 28
A45: 13 | B45: -14 | C45: 9 | D45: -14.15 | AA45: =($V$8*60*60+W44*60)/3600 -> 4.770089571 | AB45: =(AA45-ROUNDDOWN(AA45,0))*60 -> 46.20537426 | AC45: =(AB45-ROUNDDOWN(AB45,0))*60 -> 12.32245539 | AE45: =($V$10*60*60+W44*60)/3600 -> 10.27453774 | AF45: =(AE45-ROUNDDOWN(AE45,0))*60 -> 16.47226466 | AG45: =(AF45-ROUNDDOWN(AF45,0)) -> 0.4722646565
A46: 14 | B46: -14 | C46: 7 | D46: -14.11666667 | AA46: =(AD46/3600) -> 28.77011577 | AB46: =(AA46-ROUNDDOWN(AA46,0))*60 -> 46.206946 | AC46: =(AB46-ROUNDDOWN(AB46,0))*60 -> 12.41676 | AD46: =($Z$6*3600+Y44*60+Z44) -> 103572.4168
A47: 15 | B47: -14 | C47: 4 | D47: -14.06666667 | V47: X am 0° - Meridian= | W47: =($V$9+((1.1574074074*10^-5)*$Y$13)) -> 27.90509919 | X47: (n-ter Tag) | Y47: MIN | Z47: SEC | AA47: WAHRE ORTSZEIT AM ZIELORT (std:min:sec)
A48: 16 | B48: -14 | C48: 1 | D48: -14.01666667 | U48: SEPTEMBER | V48: Y gleitende ZG am 0°-Meridian= | W48: =(0.0002*W47^2+0.3435*W47-0.3333) -> 9.407840483 | X48: Y = | Y48: =ROUNDDOWN(W48,0) -> 9 | Z48: =IF(Y48>=0,ROUND(ABS(W48-Y48)*60,0),-ROUND(ABS(W48-Y48)*60,0)) -> 24 | AA48: =IF($V$8>=0,ROUNDDOWN(AA49,0),ROUNDDOWN(AA50*-1,0)) -> 4 | AB48: =IF($V$8>=0,ROUNDDOWN(AB49,0),ROUNDDOWN(AB50,0)) -> 56 | AC48: =IF($V$8>=0,ROUNDDOWN(AC49,0),ROUNDUP(AC50,0)) -> 48 | AD48: 9 | AE48: =ROUNDDOWN(AE49,0) -> 10 | AF48: =ROUNDDOWN(AF49,0) -> 27 | AG48: =ROUND(AG49*60,0) -> 5
A49: 17 | B49: -13 | C49: 57 | D49: -13.95 | AA49: =($V$8*60*60+W48*60)/3600 -> 4.946913108 | AB49: =(AA49-ROUNDDOWN(AA49,0))*60 -> 56.81478648 | AC49: =(AB49-ROUNDDOWN(AB49,0))*60 -> 48.88718899 | AE49: =($V$10*60*60+W48*60)/3600 -> 10.45136128 | AF49: =(AE49-ROUNDDOWN(AE49,0))*60 -> 27.08167688 | AG49: =(AF49-ROUNDDOWN(AF49,0)) -> 0.08167688311
A50: 18 | B50: -13 | C50: 52 | D50: -13.86666667 | AA50: =(AD50/3600) -> 28.94678243 | AB50: =(AA50-ROUNDDOWN(AA50,0))*60 -> 56.806946 | AC50: =(AB50-ROUNDDOWN(AB50,0))*60 -> 48.41676 | AD50: =($Z$6*3600+Y48*60+Z48) -> 104208.4168
A51: 19 | B51: -13 | C51: 47 | D51: -13.78333333 | V51: X am 0° - Meridian= | W51: =($V$9+((1.1574074074*10^-5)*$Y$13)) -> 27.90509919 | X51: (n-ter Tag) | Y51: MIN | Z51: SEC | AA51: WAHRE ORTSZEIT AM ZIELORT (std:min:sec)
A52: 20 | B52: -13 | C52: 41 | D52: -13.68333333 | U52: OKTOBER | V52: Y gleitende ZG am 0°-Meridian= | W52: =(-0.0048*W51^2+0.3608*W51+9.8956) -> 16.2260259 | X52: Y = | Y52: =ROUNDDOWN(W52,0) -> 16 | Z52: =IF(Y52>=0,ROUND(ABS(W52-Y52)*60,0),-ROUND(ABS(W52-Y52)*60,0)) -> 14 | AA52: =IF($V$8>=0,ROUNDDOWN(AA53,0),ROUNDDOWN(AA54*-1,0)) -> 5 | AB52: =IF($V$8>=0,ROUNDDOWN(AB53,0),ROUNDDOWN(AB54,0)) -> 3 | AC52: =IF($V$8>=0,ROUNDDOWN(AC53,0),ROUNDUP(AC54,0)) -> 37 | AD52: 10 | AE52: =ROUNDDOWN(AE53,0) -> 10 | AF52: =ROUNDDOWN(AF53,0) -> 33 | AG52: =ROUND(AG53*60,0) -> 54
A53: 21 | B53: -13 | C53: 34 | D53: -13.56666667 | AA53: =($V$8*60*60+W52*60)/3600 -> 5.060549532 | AB53: =(AA53-ROUNDDOWN(AA53,0))*60 -> 3.632971896 | AC53: =(AB53-ROUNDDOWN(AB53,0))*60 -> 37.97831374 | AE53: =($V$10*60*60+W52*60)/3600 -> 10.5649977 | AF53: =(AE53-ROUNDDOWN(AE53,0))*60 -> 33.8998623 | AG53: =(AF53-ROUNDDOWN(AF53,0)) -> 0.8998622957
A54: 22 | B54: -13 | C54: 27 | D54: -13.45 | AA54: =(AD54/3600) -> 29.06067132 | AB54: =(AA54-ROUNDDOWN(AA54,0))*60 -> 3.640279333 | AC54: =(AB54-ROUNDDOWN(AB54,0))*60 -> 38.41676 | AD54: =($Z$6*3600+Y52*60+Z52) -> 104618.4168
A55: 23 | B55: -13 | C55: 19 | D55: -13.31666667 | V55: X am 0° - Meridian= | W55: =($V$9+((1.1574074074*10^-5)*$Y$13)) -> 27.90509919 | X55: (n-ter Tag) | Y55: MIN | Z55: SEC | AA55: WAHRE ORTSZEIT AM ZIELORT (std:min:sec)
A56: 24 | B56: -13 | C56: 10 | D56: -13.16666667 | U56: NOVEMBER | V56: Y gleitende ZG am 0°-Meridian= | W56: =(-0.0069*W55^2+0.0405*W55+16.386) -> 12.14316405 | X56: Y = | Y56: =ROUNDDOWN(W56,0) -> 12 | Z56: =IF(Y56>=0,ROUND(ABS(W56-Y56)*60,0),-ROUND(ABS(W56-Y56)*60,0)) -> 9 | AA56: =IF($V$8>=0,ROUNDDOWN(AA57,0),ROUNDDOWN(AA58*-1,0)) -> 4 | AB56: =IF($V$8>=0,ROUNDDOWN(AB57,0),ROUNDDOWN(AB58,0)) -> 59 | AC56: =IF($V$8>=0,ROUNDDOWN(AC57,0),ROUNDUP(AC58,0)) -> 33 | AD56: 11 | AE56: =ROUNDDOWN(AE57,0) -> 10 | AF56: =ROUNDDOWN(AF57,0) -> 29 | AG56: =ROUND(AG57*60,0) -> 49
A57: 25 | B57: -13 | C57: 1 | D57: -13.01666667 | AA57: =($V$8*60*60+W56*60)/3600 -> 4.992501834 | AB57: =(AA57-ROUNDDOWN(AA57,0))*60 -> 59.55011005 | AC57: =(AB57-ROUNDDOWN(AB57,0))*60 -> 33.00660291 | AE57: =($V$10*60*60+W56*60)/3600 -> 10.49695001 | AF57: =(AE57-ROUNDDOWN(AE57,0))*60 -> 29.81700045 | AG57: =(AF57-ROUNDDOWN(AF57,0)) -> 0.8170004484
A58: 26 | B58: -12 | C58: 51 | D58: -12.85 | AA58: =(AD58/3600) -> 28.99261577 | AB58: =(AA58-ROUNDDOWN(AA58,0))*60 -> 59.556946 | AC58: =(AB58-ROUNDDOWN(AB58,0))*60 -> 33.41676 | AD58: =($Z$6*3600+Y56*60+Z56) -> 104373.4168
A59: 27 | B59: -12 | C59: 40 | D59: -12.66666667 | V59: X am 0° - Meridian= | W59: =($V$9+((1.1574074074*10^-5)*$Y$13)) -> 27.90509919 | X59: (n-ter Tag) | Y59: MIN | Z59: SEC | AA59: WAHRE ORTSZEIT AM ZIELORT (std:min:sec)
A60: 28 | B60: -12 | C60: 29 | D60: -12.48333333 | U60: DEZEMBER | V60: Y gleitende ZG am 0°-Meridian= | W60: =(-0.0018*W59^2-0.413*W59+11.533) -> -1.393456174 | X60: Y = | Y60: =ROUNDDOWN(W60,0) -> -1 | Z60: =IF(Y60>=0,ROUND(ABS(W60-Y60)*60,0),-ROUND(ABS(W60-Y60)*60,0)) -> -24 | AA60: =IF($V$8>=0,ROUNDDOWN(AA61,0),ROUNDDOWN(AA62*-1,0)) -> 4 | AB60: =IF($V$8>=0,ROUNDDOWN(AB61,0),ROUNDDOWN(AB62,0)) -> 46 | AC60: =IF($V$8>=0,ROUNDDOWN(AC61,0),ROUNDUP(AC62,0)) -> 0 | AD60: 12 | AE60: =ROUNDDOWN(AE61,0) -> 10 | AF60: =ROUNDDOWN(AF61,0) -> 16 | AG60: =ROUND(AG61*60,0) -> 17
A61: 29 | AA61: =($V$8*60*60+W60*60)/3600 -> 4.766891497 | AB61: =(AA61-ROUNDDOWN(AA61,0))*60 -> 46.01348983 | AC61: =(AB61-ROUNDDOWN(AB61,0))*60 -> 0.8093895763 | AE61: =($V$10*60*60+W60*60)/3600 -> 10.27133967 | AF61: =(AE61-ROUNDDOWN(AE61,0))*60 -> 16.28038023 | AG61: =(AF61-ROUNDDOWN(AF61,0)) -> 0.2803802263
A62: 2001-03-01 | B62: -12 | C62: 18 | D62: =(B62-(C62/60)) -> -12.3 | AA62: =(AD62/3600) -> 28.76678243 | AB62: =(AA62-ROUNDDOWN(AA62,0))*60 -> 46.006946 | AC62: =(AB62-ROUNDDOWN(AB62,0))*60 -> 0.41676 | AD62: =($Z$6*3600+Y60*60+Z60) -> 103560.4168
A63: 2 | B63: -12 | C63: 6 | D63: -12.1
A64: 3 | B64: -11 | C64: 53 | D64: -11.88333333
A65: 4 | B65: -11 | C65: 40 | D65: -11.66666667
A66: 5 | B66: -11 | C66: 27 | D66: -11.45
A67: 6 | B67: -11 | C67: 13 | D67: -11.21666667
A68: 7 | B68: -10 | C68: 59 | D68: -10.98333333
A69: 8 | B69: -10 | C69: 44 | D69: -10.73333333
A70: 9 | B70: -10 | C70: 29 | D70: -10.48333333
A71: 10 | B71: -10 | C71: 14 | D71: -10.23333333
A72: 11 | B72: -9 | C72: 58 | D72: -9.966666667
A73: 12 | B73: -9 | C73: 42 | D73: -9.7
A74: 13 | B74: -9 | C74: 26 | D74: -9.433333333
A75: 14 | B75: -9 | C75: 10 | D75: -9.166666667
A76: 15 | B76: -8 | C76: 53 | D76: -8.883333333
A77: 16 | B77: -8 | C77: 36 | D77: -8.6
A78: 17 | B78: -8 | C78: 19 | D78: -8.316666667
A79: 18 | B79: -8 | C79: 2 | D79: -8.033333333
A80: 19 | B80: -7 | C80: 44 | D80: -7.733333333
A81: 20 | B81: -7 | C81: 27 | D81: -7.45
A82: 21 | B82: -7 | C82: 9 | D82: -7.15
A83: 22 | B83: -6 | C83: 51 | D83: -6.85
A84: 23 | B84: -6 | C84: 33 | D84: -6.55
A85: 24 | B85: -6 | C85: 15 | D85: -6.25
A86: 25 | B86: -5 | C86: 57 | D86: -5.95
A87: 26 | B87: -5 | C87: 39 | D87: -5.65
A88: 27 | B88: -5 | C88: 21 | D88: -5.35
A89: 28 | B89: -5 | C89: 3 | D89: -5.05
A90: 29 | B90: -4 | C90: 45 | D90: -4.75
A91: 30 | B91: -4 | C91: 27 | D91: -4.45
A92: 31 | B92: -4 | C92: 9 | D92: -4.15
A93: April: | D93: April
A94: 1 | B94: -3 | C94: 51 | D94: =(B94-(C94/60)) -> -3.85
A95: =(A94+1) -> 2 | B95: -3 | C95: 33 | D95: -3.55
A96: 3 | B96: -3 | C96: 15 | D96: -3.25
A97: 4 | B97: -2 | C97: 58 | D97: -2.966666667
A98: 5 | B98: -2 | C98: 40 | D98: -2.666666667
A99: 6 | B99: -2 | C99: 23 | D99: -2.383333333
A100: 7 | B100: -2 | C100: 6 | D100: -2.1
A101: 8 | B101: -1 | C101: 50 | D101: -1.833333333
A102: 9 | B102: -1 | C102: 33 | D102: -1.55
A103: 10 | B103: -1 | C103: 17 | D103: -1.283333333
A104: 11 | B104: -1 | C104: 1 | D104: -1.016666667
A105: 12 | B105: 0 | C105: 46 | D105: -0.7666666667
A106: 13 | B106: 0 | C106: 30 | D106: -0.5
A107: 14 | B107: 0 | C107: 15 | D107: -0.25
A108: 15 | B108: 0 | C108: 1 | D108: -0.01666666667
A109: 16 | B109: 0 | C109: 13 | D109: =(B109+(C109/60)) -> 0.2166666667
A110: 17 | B110: 0 | C110: 27 | D110: 0.45
A111: 18 | B111: 0 | C111: 41 | D111: 0.6833333333
A112: 19 | B112: 0 | C112: 54 | D112: 0.9
A113: 20 | B113: 1 | C113: 6 | D113: 1.1
A114: 21 | B114: 1 | C114: 18 | D114: 1.3
A115: 22 | B115: 1 | C115: 30 | D115: 1.5
A116: 23 | B116: 1 | C116: 41 | D116: 1.683333333
A117: 24 | B117: 1 | C117: 52 | D117: 1.866666667
A118: 25 | B118: 2 | C118: 3 | D118: 2.05
A119: 26 | B119: 2 | C119: 13 | D119: 2.216666667
A120: 27 | B120: 2 | C120: 22 | D120: 2.366666667
A121: 28 | B121: 2 | C121: 31 | D121: 2.516666667
A122: 29 | B122: 2 | C122: 40 | D122: 2.666666667
A123: 30 | B123: 2 | C123: 48 | D123: 2.8 | J123: Mai | K123: Juni | L123: Juli | M123: August
A124: Mai | D124: Mai | E124: Juni | F124: Juli | G124: August | I124: 1 | J124: 2.916666667 | K124: 2.166666667 | L124: -3.883333333 | M124: -6.366666667
A125: 1 | B125: 2 | C125: 55 | D125: =(B125+(C125/60)) -> 2.916666667 | E125: 2.166666667 | F125: -3.883333333 | G125: -6.366666667 | I125: 2 | J125: 3.033333333 | K125: 2.016666667 | L125: -4.066666667 | M125: -6.283333333
A126: 2 | B126: 3 | C126: 2 | D126: 3.033333333 | E126: 2.016666667 | F126: -4.066666667 | G126: -6.283333333 | I126: 3 | J126: 3.133333333 | K126: 1.85 | L126: -4.25 | M126: -6.216666667
A127: 3 | B127: 3 | C127: 8 | D127: 3.133333333 | E127: 1.85 | F127: -4.25 | G127: -6.216666667 | I127: 4 | J127: 3.233333333 | K127: 1.683333333 | L127: -4.433333333 | M127: -6.116666667
A128: 4 | B128: 3 | C128: 14 | D128: 3.233333333 | E128: 1.683333333 | F128: -4.433333333 | G128: -6.116666667 | I128: 5 | J128: 3.333333333 | K128: 1.5 | L128: -4.616666667 | M128: -6.016666667
A129: 5 | B129: 3 | C129: 20 | D129: 3.333333333 | E129: 1.5 | F129: -4.616666667 | G129: -6.016666667 | I129: 6 | J129: 3.4 | K129: 1.333333333 | L129: -4.783333333 | M129: -5.916666667
A130: 6 | B130: 3 | C130: 24 | D130: 3.4 | E130: 1.333333333 | F130: -4.783333333 | G130: -5.916666667 | I130: 7 | J130: 3.466666667 | K130: 1.133333333 | L130: -4.95 | M130: -5.8
A131: 7 | B131: 3 | C131: 28 | D131: 3.466666667 | E131: 1.133333333 | F131: -4.95 | G131: -5.8 | I131: 8 | J131: 3.533333333 | K131: 0.95 | L131: -5.1 | M131: -5.666666667
A132: 8 | B132: 3 | C132: 32 | D132: 3.533333333 | E132: 0.95 | F132: -5.1 | G132: -5.666666667 | I132: 9 | J132: 3.583333333 | K132: 0.75 | L132: -5.25 | M132: -5.533333333
A133: 9 | B133: 3 | C133: 35 | D133: 3.583333333 | E133: 0.75 | F133: -5.25 | G133: -5.533333333 | I133: 10 | J133: 3.616666667 | K133: 0.55 | L133: -5.4 | M133: -5.383333333
A134: 10 | B134: 3 | C134: 37 | D134: 3.616666667 | E134: 0.55 | F134: -5.4 | G134: -5.383333333 | I134: 11 | J134: 3.65 | K134: 0.35 | L134: -5.533333333 | M134: -5.233333333
A135: 11 | B135: 3 | C135: 39 | D135: 3.65 | E135: 0.35 | F135: -5.533333333 | G135: -5.233333333 | I135: 12 | J135: 3.666666667 | K135: 0.15 | L135: -5.666666667 | M135: -5.066666667
A136: 12 | B136: 3 | C136: 40 | D136: 3.666666667 | E136: 0.15 | F136: -5.666666667 | G136: -5.066666667 | I136: 13 | J136: 3.683333333 | K136: 0.06666666667 | L136: -5.783333333 | M136: -4.883333333
A137: 13 | B137: 3 | C137: 41 | D137: 3.683333333 | E137: 0.06666666667 | F137: -5.783333333 | G137: -4.883333333 | I137: 14 | J137: 3.683333333 | K137: 0.2833333333 | L137: -5.9 | M137: -4.7
A138: 14 | B138: 3 | C138: 41 | D138: 3.683333333 | E138: 0.2833333333 | F138: -5.9 | G138: -4.7 | I138: 15 | J138: 3.666666667 | K138: 0.5 | L138: -6 | M138: -4.516666667
A139: 15 | B139: 3 | C139: 40 | D139: 3.666666667 | E139: 0.5 | F139: -6 | G139: -4.516666667 | I139: 16 | J139: 3.65 | K139: 0.7166666667 | L139: -6.1 | M139: -4.316666667
A140: 16 | B140: 3 | C140: 39 | D140: 3.65 | E140: 0.7166666667 | F140: -6.1 | G140: -4.316666667 | I140: 17 | J140: 3.616666667 | K140: 0.9333333333 | L140: -6.2 | M140: -4.1
A141: 17 | B141: 3 | C141: 37 | D141: 3.616666667 | E141: 0.9333333333 | F141: -6.2 | G141: -4.1 | I141: 18 | J141: 3.583333333 | K141: 1.15 | L141: -6.266666667 | M141: -3.883333333
A142: 18 | B142: 3 | C142: 35 | D142: 3.583333333 | E142: 1.15 | F142: -6.266666667 | G142: -3.883333333 | I142: 19 | J142: 3.533333333 | K142: 1.366666667 | L142: -6.35 | M142: -3.65
A143: 19 | B143: 3 | C143: 32 | D143: 3.533333333 | E143: 1.366666667 | F143: -6.35 | G143: -3.65 | I143: 20 | J143: 3.466666667 | K143: 1.583333333 | L143: -6.4 | M143: -3.416666667
A144: 20 | B144: 3 | C144: 28 | D144: 3.466666667 | E144: 1.583333333 | F144: -6.4 | G144: -3.416666667 | I144: 21 | J144: 3.416666667 | K144: 1.8 | L144: -6.45 | M144: -3.166666667
A145: 21 | B145: 3 | C145: 25 | D145: 3.416666667 | E145: 1.8 | F145: -6.45 | G145: -3.166666667 | I145: 22 | J145: 3.333333333 | K145: 2.016666667 | L145: -6.5 | M145: -2.916666667
A146: 22 | B146: 3 | C146: 20 | D146: 3.333333333 | E146: 2.016666667 | F146: -6.5 | G146: -2.916666667 | I146: 23 | J146: 3.25 | K146: 2.233333333 | L146: -6.533333333 | M146: -2.666666667
A147: 23 | B147: 3 | C147: 15 | D147: 3.25 | E147: 2.233333333 | F147: -6.533333333 | G147: -2.666666667 | I147: 24 | J147: 3.166666667 | K147: 2.45 | L147: -6.55 | M147: -2.4
A148: 24 | B148: 3 | C148: 10 | D148: 3.166666667 | E148: 2.45 | F148: -6.55 | G148: -2.4 | I148: 25 | J148: 3.066666667 | K148: 2.666666667 | L148: -6.566666667 | M148: -2.116666667
A149: 25 | B149: 3 | C149: 4 | D149: 3.066666667 | E149: 2.666666667 | F149: -6.566666667 | G149: -2.116666667 | I149: 26 | J149: 2.966666667 | K149: 2.883333333 | L149: -6.566666667 | M149: -1.833333333
A150: 26 | B150: 2 | C150: 58 | D150: 2.966666667 | E150: 2.883333333 | F150: -6.566666667 | G150: -1.833333333 | I150: 27 | J150: 2.85 | K150: 3.083333333 | L150: -6.55 | M150: -1.55
A151: 27 | B151: 2 | C151: 51 | D151: 2.85 | E151: 3.083333333 | F151: -6.55 | G151: -1.55 | I151: 28 | J151: 2.733333333 | K151: 3.283333333 | L151: -6.533333333 | M151: -1.25
A152: 28 | B152: 2 | C152: 44 | D152: 2.733333333 | E152: 3.283333333 | F152: -6.533333333 | G152: -1.25 | I152: 29 | J152: 2.6 | K152: 3.5 | L152: -6.5 | M152: -0.95
A153: 29 | B153: 2 | C153: 36 | D153: 2.6 | E153: 3.5 | F153: -6.5 | G153: -0.95 | I153: 30 | J153: 2.466666667 | K153: 3.683333333 | L153: -6.466666667 | M153: -0.65
A154: 30 | B154: 2 | C154: 28 | D154: 2.466666667 | E154: 3.683333333 | F154: -6.466666667 | G154: -0.65 | I154: 31 | J154: 2.316666667 | L154: -6.416666667 | M154: -0.3333333333
A155: 31 | B155: 2 | C155: 19 | D155: 2.316666667 | F155: -6.416666667 | G155: -0.3333333333
A156: Juni | D156: Juni
A157: 1 | B157: 2 | C157: 10 | D157: =(B157+(C157/60)) -> 2.166666667
A158: 2 | B158: 2 | C158: 1 | D158: 2.016666667
A159: 3 | B159: 1 | C159: 51 | D159: 1.85
A160: 4 | B160: 1 | C160: 41 | D160: 1.683333333
A161: 5 | B161: 1 | C161: 30 | D161: 1.5
A162: 6 | B162: 1 | C162: 20 | D162: 1.333333333
A163: 7 | B163: 1 | C163: 8 | D163: 1.133333333
A164: 8 | B164: 0 | C164: 57 | D164: 0.95
A165: 9 | B165: 0 | C165: 45 | D165: 0.75
A166: 10 | B166: 0 | C166: 33 | D166: 0.55
A167: 11 | B167: 0 | C167: 21 | D167: 0.35
A168: 12 | B168: 0 | C168: 9 | D168: 0.15
A169: 13 | B169: 0 | C169: 4 | D169: =-(B169-(C169/60)) -> 0.06666666667
A170: 14 | B170: 0 | C170: 17 | D170: =-(B170-(C170/60)) -> 0.2833333333
A171: 15 | B171: 0 | C171: 30 | D171: 0.5
A172: 16 | B172: 0 | C172: 43 | D172: 0.7166666667
A173: 17 | B173: 0 | C173: 56 | D173: 0.9333333333
A174: 18 | B174: -1 | C174: 9 | D174: 1.15
A175: 19 | B175: -1 | C175: 22 | D175: 1.366666667
A176: 20 | B176: -1 | C176: 35 | D176: 1.583333333
A177: 21 | B177: -1 | C177: 48 | D177: 1.8
A178: 22 | B178: -2 | C178: 1 | D178: 2.016666667
A179: 23 | B179: -2 | C179: 14 | D179: 2.233333333
A180: 24 | B180: -2 | C180: 27 | D180: 2.45
A181: 25 | B181: -2 | C181: 40 | D181: 2.666666667
A182: 26 | B182: -2 | C182: 53 | D182: 2.883333333
A183: 27 | B183: -3 | C183: 5 | D183: 3.083333333
A184: 28 | B184: -3 | C184: 17 | D184: 3.283333333
A185: 29 | B185: -3 | C185: 30 | D185: 3.5
A186: 30 | B186: -3 | C186: 41 | D186: 3.683333333
A187: Juli | D187: Juli
A188: 1 | B188: =(3*-1) -> -3 | C188: 53 | D188: =(B188-(C188/60)) -> -3.883333333
A189: 2 | B189: -4 | C189: 4 | D189: =(B189-(C189/60)) -> -4.066666667
A190: 3 | B190: -4 | C190: 15 | D190: -4.25
A191: 4 | B191: -4 | C191: 26 | D191: -4.433333333
A192: 5 | B192: -4 | C192: 37 | D192: -4.616666667
A193: 6 | B193: -4 | C193: 47 | D193: -4.783333333
A194: 7 | B194: -4 | C194: 57 | D194: -4.95
A195: 8 | B195: -5 | C195: 6 | D195: -5.1
A196: 9 | B196: -5 | C196: 15 | D196: -5.25
A197: 10 | B197: -5 | C197: 24 | D197: -5.4
A198: 11 | B198: -5 | C198: 32 | D198: -5.533333333
A199: 12 | B199: -5 | C199: 40 | D199: -5.666666667
A200: 13 | B200: -5 | C200: 47 | D200: -5.783333333
... 177 more rows
